{"text_format":"1","workbook":"xlsx","n_sheets":5,"sheets":["Welcome","OtherTables","MasterSheet","RTE_State_Rules_Matrix","Credits"],"not_rendered":{"charts":0,"images":2,"macros":1,"external_links":0,"defined_names":0,"comments":1,"pivot_tables":0},"unopened":[],"bounds":{"document_bytes":16777216,"sheet_cells":100000,"rows_first":2000,"rows_last":500,"rows_between":2000,"halvings":0,"cell_chars":16384,"cell_head_chars":4096},"cells_cut":0,"cells_raw":0,"read":"whole","date_system":"1900"}

{"sheet":"Welcome","index":0,"n_rows":17,"n_cols":3,"rows_kept":17,"cut":false,"hidden":false,"merged":[]}
[]
[]
[null,null,"Welcome to RTE State Rules Matrix"]
[null,null,"A CCS Presentation"]
[]
[]
[]
[]
[]
[null,null,"CENTRE FOR CIVIL SOCIETY"]
[null,null,"Social Change Through Public Policy"]
[]
[null,null,"Thank You for visiting www.righttoeducation.in"]
[]
[null,null,"Important"]
[null,null,"You will have to enable macros to view this document."]
[null,null,"If you do not enable macros, this document won't open."]

{"sheet":"OtherTables","index":1,"n_rows":42,"n_cols":20,"rows_kept":42,"cut":false,"hidden":true,"merged":[[3,15,3,16],[1,1,1,2],[1,4,1,11]]}
[]
[null,"Category sub-Category Table",null,null,"Data Sources Table"]
[null,"Category","Sub-Category",null,null,"25% Reservation","Neighbourhood Criteria","School Recognition","School Management Committees","Quality of Education","Authorities","Disability",null,null,"Andhra Pradesh","Meghalaya","Learning Outcomes",null,"Meeting of the neighbourhood criteria",1]
[null,"25% Reservation","EWS Criterion",null,"Andhra Pradesh","Andhra Pradesh RTE Rules","Andhra Pradesh RTE Rules","Andhra Pradesh RTE Rules","Andhra Pradesh RTE Rules","Andhra Pradesh RTE Rules","Andhra Pradesh RTE Rules","Andhra Pradesh RTE Rules",null,null,"Arunachal Pradesh",{"$f":"HLOOKUP(P3,#REF!,MATCH(Q3,#REF!,0)+1,FALSE)","v":{"$error":"#REF!"}},null,null,"25% Reservation for children in pvt schools",2]
[null,"25% Reservation","Disadvantaged Group Criterion",null,"Arunachal Pradesh","Arunachal Pradesh RTE Rules","Arunachal Pradesh RTE Rules","Arunachal Pradesh RTE Rules","Arunachal Pradesh RTE Rules","Arunachal Pradesh RTE Rules","Arunachal Pradesh RTE Rules","Arunachal Pradesh RTE Rules",null,null,"Assam",null,null,null,"School Recognition",3]
[null,"25% Reservation","Pre-School Education",null,"Assam","Assam RTE Rules","Assam RTE Rules","Assam RTE Rules","Assam RTE Rules","Assam RTE Rules","Assam RTE Rules","Assam RTE Rules",null,null,"Bihar",null,null,null,"School Management Committees",4]
[null,"25% Reservation","Frequency of Calculation of\nPer-child Cost",null,"Bihar","Bihar RTE Rules","Bihar RTE Rules","Bihar RTE Rules","Bihar RTE Rules","Bihar RTE Rules","Bihar RTE Rules","Bihar RTE Rules",null,null,"Chhattisgarh",null,null,null,"Learning Outcomes",5]
[null,"25% Reservation","Per-child Cost per year in Rupees",null,"Chhattisgarh","Chhattisgarh RTE Rules","Chhattisgarh RTE Rules","Chhattisgarh RTE Rules","Chhattisgarh RTE Rules","Chhattisgarh RTE Rules","PIB Release: http://pib.nic.in/newsite/erelease.aspx?relid=71432","Chhattisgarh RTE Rules",null,null,"Delhi",null,null,null,"Teachers",6]
[null,"25% Reservation","Document Proof for EWS/Disadvantaged",null,"Delhi","a) Delhi School Education (Free seats for Students belongning to Economically Weaker Sections and Disadvantaged Group) Order, 2011\nb) Delhi RTE Rules","Delhi RTE Rules","Delhi RTE Rules","Delhi RTE Rules","Delhi RTE Rules","Delhi RTE Rules","Delhi RTE Rules",null,null,"Goa",null,null,null,"Continuous and Comprehensive Evaluations ",7]
[null,"25% Reservation","Payment Schedule",null,"Goa","a) Media: http://articles.timesofindia.indiatimes.com/2011-06-13/mumbai/29652497_1_rte-rules-private-schools-lakh-children\nb) Goa RTE Rules","Goa RTE Rules","Goa RTE Rules","Goa RTE Rules","Goa RTE Rules","Goa RTE Rules","Goa RTE Rules",null,null,"Gujarat",null,null,null,"Monitoring and Protection child rights",8]
[null,"25% Reservation","Payment Condition",null,"Gujarat","Gujarat RTE Rules","Gujarat RTE Rules","Gujarat RTE Rules","Gujarat RTE Rules","Gujarat RTE Rules","Gujarat RTE Rules","Gujarat RTE Rules",null,null,"Haryana"]
[null,"25% Reservation","Neighbourhood Criterion",null,"Haryana","Haryana Delhi RTE Rules","Haryana Delhi RTE Rules","Haryana Delhi RTE Rules","Haryana Delhi RTE Rules","Haryana Delhi RTE Rules","PIB Release: http://pib.nic.in/newsite/erelease.aspx?relid=71432","Haryana Delhi RTE Rules",null,null,"Himachal Pradesh"]
[null,"25% Reservation","Procedure of Admission",null,"Himachal Pradesh","Himachal Pradesh Delhi RTE Rules","Himachal Pradesh Delhi RTE Rules",{"$f":"CONCATENATE($E$13,\" \",$F$9)","v":"Himachal Pradesh a) Delhi School Education (Free seats for Students belongning to Economically Weaker Sections and Disadvantaged Group) Order, 2011\nb) Delhi RTE Rules"},{"$f":"CONCATENATE($E$13,\" \",$F$9)","v":"Himachal Pradesh a) Delhi School Education (Free seats for Students belongning to Economically Weaker Sections and Disadvantaged Group) Order, 2011\nb) Delhi RTE Rules"},{"$f":"CONCATENATE($E$13,\" \",$F$9)","v":"Himachal Pradesh a) Delhi School Education (Free seats for Students belongning to Economically Weaker Sections and Disadvantaged Group) Order, 2011\nb) Delhi RTE Rules"},{"$f":"CONCATENATE($E$13,\" \",$F$9)","v":"Himachal Pradesh a) Delhi School Education (Free seats for Students belongning to Economically Weaker Sections and Disadvantaged Group) Order, 2011\nb) Delhi RTE Rules"},{"$f":"CONCATENATE($E$13,\" \",$F$9)","v":"Himachal Pradesh a) Delhi School Education (Free seats for Students belongning to Economically Weaker Sections and Disadvantaged Group) Order, 2011\nb) Delhi RTE Rules"},null,null,"J&K"]
[null,"25% Reservation","Special Entitlements for Disabled",null,"J&K","RTE Not Applicable","RTE Not Applicable","RTE Not Applicable","RTE Not Applicable","RTE Not Applicable","PIB Release: http://pib.nic.in/newsite/erelease.aspx?relid=71432","RTE Not Applicable",null,null,"Jharkhand"]
[null,"25% Reservation","Entitlements",null,"Jharkhand","Jharkhand RTE Rules","Jharkhand RTE Rules","Jharkhand RTE Rules","Jharkhand RTE Rules","Jharkhand RTE Rules","Jharkhand RTE Rules","Jharkhand RTE Rules",null,null,"Karnataka"]
[null,"25% Reservation","Misc",null,"Karnataka","Karnataka RTE Rules","Karnataka RTE Rules","Karnataka RTE Rules","Karnataka RTE Rules","Karnataka RTE Rules","Karnataka RTE Rules","Karnataka RTE Rules",null,null,"Kerala"]
[null,"Neighbourhood Criterion","Class I-V\n(Distance\nin km)",null,"Kerala","Kerala RTE Rules","Kerala RTE Rules","Kerala RTE Rules","Kerala RTE Rules","Kerala RTE Rules","Kerala RTE Rules","Kerala RTE Rules",null,null,"Madhya Pradesh"]
[null,"Neighbourhood Criterion","Class VI-VIII\n(Distance\n in km)",null,"Madhya Pradesh","a) Madhya Pradesh RTE Rules\nb) http://articles.timesofindia.indiatimes.com/2012-05-05/bhopal/31585530_1_reimbursement-private-unaided-schools-education-act","Madhya Pradesh RTE Rules","Madhya Pradesh RTE Rules","Madhya Pradesh RTE Rules","Madhya Pradesh RTE Rules","PIB Release: http://pib.nic.in/newsite/erelease.aspx?relid=71432","Madhya Pradesh RTE Rules",null,null,"Maharashtra"]
[null,"Neighbourhood Criterion","Disabled",null,"Maharashtra","a) Maharashtra Right of Children to Free and Compulsory Education (manner of reservation of seats for admission, in respect of elementary education, for the child belonging to disadvantaged group and child belonging to weaker section) Rules, 2012\nb) Media: http://articles.timesofindia.indiatimes.com/2011-06-13/mumbai/29652497_1_rte-rules-private-schools-lakh-children\nc) Maharashtra RTE Rules","Maharashtra RTE Rules","Maharashtra RTE Rules","Maharashtra RTE Rules","Maharashtra RTE Rules","Maharashtra RTE Rules","Maharashtra RTE Rules",null,null,"Manipur"]
[null,"Neighbourhood Criterion","Proof of Residence Documents",null,"Manipur","Manipur RTE Rules","Manipur RTE Rules","Manipur RTE Rules","Manipur RTE Rules","Manipur RTE Rules","Manipur RTE Rules","Manipur RTE Rules",null,null,"Meghalaya"]
[null,"Neighbourhood Criterion","Proof of Age Documents (other than a Birth Certificate)",null,"Meghalaya","Meghalaya RTE Rules","Meghalaya RTE Rules","Meghalaya RTE Rules","Meghalaya RTE Rules","Meghalaya RTE Rules","Meghalaya RTE Rules","Meghalaya RTE Rules",null,null,"Mizoram"]
[null,"Neighbourhood Criterion","Criterion under 25% Reservation",null,"Mizoram","Mizoram RTE Rules","Mizoram RTE Rules","Mizoram RTE Rules","Mizoram RTE Rules","Mizoram RTE Rules","PIB Release: http://pib.nic.in/newsite/erelease.aspx?relid=71432","Mizoram RTE Rules",null,null,"Nagaland"]
[null,"School Recognition","Recognition Criterion",null,"Nagaland","Nagaland RTE Rules","Nagaland RTE Rules","Nagaland RTE Rules","Nagaland RTE Rules","Nagaland RTE Rules","Nagaland RTE Rules","Nagaland RTE Rules",null,null,"Orissa"]
[null,"School Recognition","Misc/Other",null,"Orissa","Orissa RTE Rules","Orissa RTE Rules","Orissa RTE Rules","Orissa RTE Rules","Orissa RTE Rules","Orissa RTE Rules","Orissa RTE Rules",null,null,"Punjab"]
[null,"School Management Committees","Structure",null,"Punjab","Punjab RTE Rules","Punjab RTE Rules","Punjab RTE Rules","Punjab RTE Rules","Punjab RTE Rules","Punjab RTE Rules","Punjab RTE Rules",null,null,"Rajasthan"]
[null,"School Management Committees","Composition",null,"Rajasthan","Rajasthan RTE Rules","Rajasthan RTE Rules","Rajasthan RTE Rules","Rajasthan RTE Rules","Rajasthan RTE Rules","PIB Release: http://pib.nic.in/newsite/erelease.aspx?relid=71432","Rajasthan RTE Rules",null,null,"Sikkim"]
[null,"School Management Committees","Reservation for Women",null,"Sikkim","Sikkim RTE Rules","Sikkim RTE Rules","Sikkim RTE Rules","Sikkim RTE Rules","Sikkim RTE Rules","Sikkim RTE Rules","Sikkim RTE Rules",null,null,"Tamil Nadu"]
[null,"School Management Committees","Reservation for EWS/Disadvantaged Group",null,"Tamil Nadu","a) Tamil Nadu Notification- GO (Ms) No. 174 \nb) Tamil Nadu RTE Rules\nc) Fee Reimbursement: http://www.deccanherald.com/content/301210/rte-quota-reimbursement-private-schools.html","Tamil Nadu RTE Rules","Tamil Nadu RTE Rules","Tamil Nadu RTE Rules","Tamil Nadu RTE Rules","Tamil Nadu RTE Rules","Tamil Nadu RTE Rules",null,null,"Tripura"]
[null,"School Management Committees","Reservation for\nParents/Guardian",null,"Tripura","Tripura RTE Rules","Tripura RTE Rules","Tripura RTE Rules","Tripura RTE Rules","Tripura RTE Rules","Tripura RTE Rules","Tripura RTE Rules",null,null,"Uttaranchal"]
[null,"School Management Committees","Reservation for Children",null,"Uttarakhand","a) Uttarakhand Notification under Section 12(2) of RTE Act.\nb) Uttarakhand RTE Rules","Uttarakhand RTE Rules","Uttarakhand RTE Rules","Uttarakhand RTE Rules","Uttarakhand RTE Rules","Uttarakhand RTE Rules","Uttarakhand RTE Rules",null,null,"Uttar Pradesh"]
[null,"School Management Committees","Reservation for Local Representatives",null,"Uttar Pradesh","a) Media: http://articles.timesofindia.indiatimes.com/2011-06-13/mumbai/29652497_1_rte-rules-private-schools-lakh-children\nb) Uttar Pradesh RTE Rules","Uttar Pradesh RTE Rules","Uttar Pradesh RTE Rules","Uttar Pradesh RTE Rules","Uttar Pradesh RTE Rules","Uttar Pradesh RTE Rules","Uttar Pradesh RTE Rules",null,null,"West Bengal"]
[null,"School Management Committees","Reservation for Teachers",null,"West Bengal","West Bengal RTE Rules","West Bengal RTE Rules","West Bengal RTE Rules","West Bengal RTE Rules","West Bengal RTE Rules","West Bengal RTE Rules","West Bengal RTE Rules"]
[null,"School Management Committees","Special Invitee"]
[null,"School Management Committees","Chairperson/Convener"]
[null,"School Management Committees","Special Duties"]
[null,"School Management Committees","Other/Misc"]
[null,"Quality of Education","Learning Outcomes"]
[null,"Quality of Education","Remedial Measures"]
[null,"Quality of Education","Other"]
[null,"Disability","Neighbourhood Criterion for Disabled"]
[null,"Disability","Special Entitlements"]
[null,"Disability","Teacher Training"]

{"sheet":"MasterSheet","index":2,"n_rows":31,"n_cols":43,"rows_kept":31,"cut":false,"hidden":true,"merged":[[0,40,0,42],[0,34,0,36],[0,37,0,39],[0,1,0,13],[0,20,0,21],[0,22,0,33],[0,14,0,19]]}
["Criterion/State","RTE Section 12",null,null,null,null,null,null,null,null,null,null,null,null,"Neighbourhood Criterion",null,null,null,null,null,"School Recognition",null,"School Management Committees",null,null,null,null,null,null,null,null,null,null,null,"Quality of Education",null,null,"Authorities",null,null,"Disability"]
[null,"EWS Criterion","Disadvantaged Group Criterion","Pre-School Education","Frequency of Calculation of\nPer-child Cost","Per-child Cost per year in Rupees","Document Proof for EWS/Disadvantaged","Payment Schedule","Payment Condition","Neighbourhood Criterion","Procedure of Admission","Special Entitlements for Disabled","Entitlements","Misc","Class I-V\n(Distance\nin km)","Class VI-VIII\n(Distance\n in km)","Disabled","Proof of Residence Documents","Proof of Age Documents (other than a Birth Certificate)","Criterion under 25% Reservation","Recognition Criterion","Misc/Other","Structure","Composition","Reservation for Women","Reservation for EWS/Disadvantaged Group","Reservation for\nParents/Guardian","Reservation for Children","Reservation for Local Representatives","Reservation for Teachers","Special Invitee","Chairperson/Convener","Special Duties","Other/Misc","Learning Outcomes","Remedial Measures","Other","State Advisory\nCouncil","REPA","SCPCR","Neighbourhood Criterion for Disabled","Special Entitlements","Teacher Training"]
["Andhra Pradesh","Annual Income of parents\n< Rs. 60,000 of:\na) Backward Classes \nb) Minorities\nc) Other classes","a) SC\nb) ST\nc) Orphans\nd) Migrant and Street Children\ne) Children with Special Needs\nf) HIV affected/infected children","No Mention","Every year in December","-","No Mention","Payment through RTGS/NEFT\nIst Instalment: 50%\nin September\n2nd Instalment: 50% in\nJanuary","Verification of Enrolment\nby DEO, Minimum Attendance of kids @ 80%\nevery month,student\nlearning outcomes\n","Same as Govt. Schools","No Mention","No Mention","Free text books,\nOne Notebook per subject,\nOther Writing Material,\nMid-day meals,\nUniforms ","Priority in Admission under Section 12-\nDisadvantaged Groups: 19%\na) Orphanse, HIV,\nDisabled: 5%\nb) SC: 10%\nc) ST: 4%\nWeaker Sections: 6%","0-1","0-3","Transportation,\nFor Severe Disability - Home Based Education","a) Ration Card\nb) Pattadar Pass Book\nc) Electricity Bill\nd) House Tax Receipt\ne) Telephone Bill","1) Hospital/ANM\n2) Anganwadi Record\n3) Self-declaration\nby parent/guardian","Same as Govt. Schools","Infrastructure based only as per the Schedule of the Act.","Dedicated Website for Recognition system.","Single Committee","27 Members","No Mention","One each for SC/ST/OBC/Muslim Minority from each each class","24 out of 27 members","Two Children and one of them may be a girl child","a) Corporator/Counselor in urban areas.\nb) One member from ward of Gram Panchayat incharge of education  ","No Mention","Eminent Educationist/Philanthropist","1) Chairperson - Sarpanch in Rural Areas,\nCorporator in Urban Areas.\n2) Member-Convener- Head Teacher\n","1) Arrange to demonstrate learning outcomes in reading, writing, arithmetic and comprehension,\nreduce teacher and student absenteeism\n2) Can hire teachers temporarily in case of delay in filling of vacancies.","Reservation for Parents/Guardian of child securing highest and lowest marks in all classes.","a) Payment  under section 12 has been conditioned on Learning Outcomes.\nb) SMC will do randomised testing of reading, writing, arithmetic and comprehension","No Mention","-","NA","NA","NA","a) Free transport\nb) Home based education in case of severe disability","Special Material, Uniforms and Books","All regular teachers to be trained in teaching methods for Child with Special Needs"]
["Arunachal Pradesh","Annual Income of Parents/Guardian less than the minimum limit specified in BPL families by the State govt.","NA","Provisions of 25% reservation shall apply to pre-primary classes wherever applicable.","No Mention","NA","NA","No Mention","No Mention","Same as Govt. Schools.\nRelaxation in case seats are not getting filled.","No Mention","Free special learning and support material","Free textbooks, writing materials and uniforms","-","0-1","0-3","Appropriate and safe transport arrangements by govt./local auth","No Mention","1) Hospital/ANM\n2) Anganwadi Record\n3) Self-declaration by parent/guardian","Same as Govt. Schools.\nRelaxation in case seats are not getting filled.","Infrastructure based requirements only.","-","Single Committee","No Mention","No Mention","No Mention","75%","8.33% from among local educationists/children, To be decided by Parents","8.33%, To be decided by local authority","8.33%, to be decided by teachers","NA","1) Chairperson - Parent,\n2) Member-Convener - Head Teacher","No Mention","-","SCERT shall design and implement a process of school quality assessment on a regular basis.","Special Training for children identified by SMC/Local Authority","-","NA","NA","NA","Appropriate and safe transport arrangements by govt./local auth","Free special learning and support material","No Mention"]
["Assam","NA","NA","No Mention","No Mention","NA","No Mention","1st Instalment (50%): September\n2nd Instalment (50%): January","No Mention","Same as Govt. Schools.\nRelaxation in case seats are not getting filled.","No Mention","Special Learning and Support Material.","Free textbooks,\nLearning Materials,\nUniforms","-","0-1","0-3","Transportation Arrangements","No Mention","1) Anganwadi Record\n2) Horoscope\n3) Certificate issued by villa headman (Gaon-Burha)\n4) Self-declaration\nby parent/guardian","Same as Govt. Schools.\nRelaxation in case seats are not getting filled.","Infrastructure based only as per the Schedule of the Act.","-","Single Committee","No Mention","50%","3 among 9 members among Parents","9 members","No Mention","One member from among Gaonburah/village headman/Community Nominee","One member from among teachers/local health workers/anganwadi workers","Two educationists/senior citizens as advisors","President - Parents\nMember-Secretary- Head teacher\n","1) Salaries of teaching/non-teaching staff shall be determined on the basis of strength of absentee statement approved by SMC which will monitor teacher attendance (left early/came late).\n2) Application for casual leave to be accepted by Dy. Inspector of Schools/BEO unless endorsed by SMC.","Very detailed procedures for election of members, conduct of business during meetings etc.","No Mention","Special Training for children identified by SMC/Local Authority","-","NA","NA","Constituted on Mar 4, 2010 vide\nNotification No. SWD 79/93/Pt. V/136-A ","Transportation Arrangements","Special learning and support material","No Mention"]
["Bihar","Work in Progress","Work in Progress","Work in Progress","Work in Progress","Work in Progress","Work in Progress","Work in Progress","Work in Progress","Work in Progress","Work in Progress","Work in Progress","Work in Progress","Work in Progress","Work in Progress","Work in Progress","Work in Progress","Work in Progress","Work in Progress","Work in Progress","Work in Progress","Work in Progress","Work in Progress","Work in Progress","Work in Progress","Work in Progress","Work in Progress","Work in Progress","Work in Progress","Work in Progress","Work in Progress","Work in Progress","Work in Progress","Work in Progress","Work in Progress","Work in Progress","Work in Progress","NA","NA","Constituted on Dec 23, 2008\nvide Notification No. ज्ञापांक-10/प्र0 गृ0स्था0 -16/ 2006-2028","Work in Progress","Work in Progress","Work in Progress"]
["Chhattisgarh","Work in Progress","Work in Progress","Work in Progress","Work in Progress","Work in Progress","Work in Progress","Work in Progress","Work in Progress","Work in Progress","Work in Progress","Work in Progress","Work in Progress","Work in Progress","Work in Progress","Work in Progress","Work in Progress","Work in Progress","Work in Progress","Work in Progress","Work in Progress","Work in Progress","Work in Progress","Work in Progress","Work in Progress","Work in Progress","Work in Progress","Work in Progress","Work in Progress","Work in Progress","Work in Progress","Work in Progress","Work in Progress","Work in Progress","Work in Progress","Work in Progress","Work in Progress","NA","NA","SCPCR constituted","Work in Progress","Work in Progress","Work in Progress"]
["Delhi","Annual Income of parents < Rs. 1 Lakh and a resident of Delhi since the last three years.","a) SC\nb) ST\nc) OBC (non creamy)\nd) Disabled\ne) Orphan","Provisions of 25% reservation shall apply to all three classes- Pre-nursery, LKG, UKG","Every year in December",14280,"a) Income Certificate issued by revenue officer\nb) BPL Card (yellow), AAY Card (pink)","No Mention","No Mention","Same as Govt. Schools.\nRelaxation in case seats are not getting filled.","Draw of lots. Procedure to be videographed.","free special learning and support material","free text books, writing materials and uniforms ","25% Reservation applicable to all three classes- Pre-nursery, LKG, UKG","0-1","0-3","Free Transportation","a) Ration Card\nb) Domicile Certificate of Child/Parent\nc) Voter ID\nd) Passport\ne) Electricity Bill\nf) Telephone Bill\ng) Water Bill","1) Hospital/ANM\n2) Anganwadi Record\n3) Self-declaration by parent/guardian","Same as Govt. Schools.\nRelaxation in case seats are not getting filled.","Infrastructure based only as per the Schedule of the Act.","-","Single Committee","16 Members","50%","Proportionate representation","75%","No Mention","One Member","1  - Teacher,\n1  - Head of the school","1 - Social Science Teacher\n1 - Science Teacher\n1- Maths Teacher","Chairperson - School Principal (ex-officio)","No Mention","-","No mention","No Mention","-","NA","NA","Constituted on Sep 8, 2008","Free Transport","Free special learning and support material","No Mention"]
["Goa","No Mention","No Mention","No Mention","Committee for reimbursement shall meet once every six months","Rs. 5,553","No Mention","1st Instalment (50%): September,\n2nd Instalment (50%): January","Verification of enrolment before 1st Reimbursement,\nVerification of enrolment and min 80% every monh.","Same as Govt. Schools.\nRelaxation in case seats are not getting filled.","No Mention","free special learning and support material","Free text books,\nWriting Materials,\nUniform","-","I-IV: 0-1","V-VII: 0-3","Transport Arrangements","No Mention","1) Hospital/ANM\n2) Anganwadi Record\n3) Self-declaration by parent/guardian","Same as Govt. Schools.\nRelaxation in case seats are not getting filled.","Infrastructure based only as per the Schedule of the Act.","-","Single Committee","Min 12 members","No Mention","No Mention","75%","8.33% from local educationists/children, To be decided by parents in the comm","8.33%, To be decided by local authority","8.33%, to be decided by teachers","No Mention","1) Chairperson - Parent,\n2) Member-Convener - Head Teacher","No Mention","-","Academic Auth shall design and implement a process of school quality assessment on a regular basis.","Special Training for children identified by SMC/Local Authority based on periodical assessment of learning progress.","-","NA","NA","Constituted on Apr 15, 2008\nvide Notification No. 2-125- 206/DW &CD/1941","Transport Arrangements","Free special learning and support material","No Mention"]
["Gujarat","Families listed in BPL lists","a) SC\nb) ST\nc) OBC",null,"No Mention","NA","No Mention","No Mention","No Mention","Same as Govt. Schools.\nRelaxation in case seats are not getting filled.","No Mention","No Mention","Free textbooks","-","0-1","0-3","No Mention","NA","1) Hospital/ANM\n2) Anganwadi Record\n3) Self-declaration by parent/guardian","Same as Govt. Schools.\nRelaxation in case seats are not getting filled.","1) Infrastructure + Learning Outcomes based criteria.\nOn a scale of 100\na) Student LO (absolute): 30%\nb) Student LO (improvement over past performance): 40%\nc) Inputs: 15%\nd) Student non-academic LO: 15%\n2) Avg performance of schools to be converted into a scale with min defined grade.\n3) Existing schools to meet the min. grade to receive recognition.","Relaxation in classroom size norms.\nMin Carpet Area for Classrooms:\n1) Area (sq. ft.)= 8 x (no. of students) + 60.\nSubject to a minimum of 300 sq. ft.\n2) If Carpet Area < 300 sq. ft., the PTR shall not exceed: (Area of smallest classroom in sq. ft. - 60) / 8 )","Single Committee","12 members","50%","Proportionate representation to parents of disadvantaged groups/weaker sections","75%","8% from among local educationists/children, To be decided by parents/guardians.","8%, To be nominated by local authority","8%, To be decided by Teachers","NA","Chairperson: Parents/Guardians\nMember-Convener: Head-Teacher","No Mention","-","1) Learning Outcomes Requirement in all schools through independent third-party assessments\na) Student LO (absolute): 30%\nb) Student LO (improvement over past performance): 40%\nc) Inputs (infra): 15%\nd) Student non-academic LO: 15%.\n2) Avg performance of schools to be converted into a scale with min defined grade.\n3) Existing schools to meet the min. grade to receive recognition.","Special Training for children identified by local auth/ SMC .","1) Govt. to setup an independent wing to undertake quality assessments and publish a report \"School Education Quality Status\".\n2) GCERT to design/get designed evaluations to be administered every yr by teachers.\n3) Schools to be assessed by independent third party assessments every 4th year. Schools performing poorly to be assessed more often.","NA","NA","NA","No Mention","No Mention","No Mention"]
["Haryana","No Mention","No Mention","State Govt. to provide ECE for ages 3-6.","No Mention","-","No Mention","No Mention","No Mention","Same as Govt. Schools.\nRelaxation in case seats are not getting filled.","No Mention","Free Special Learning and support material","Free texbooks,\nWriting Material,\nUniform","-","0-1","0-3","Free Transportation","No Mention","1) Hospital/ANM\n2) Anganwadi Record\n3) Self-declaration by parent/guardian","Same as Govt. Schools.\nRelaxation in case seats are not getting filled.","Infrastructure based only as per the Schedule of the Act.","-","Single Committee","1-300 Students - 12 members\n301-500 students - 16 members\n501+ students - 20 members","No Mention","No Mention","75%","8.33% from among local educationists/children to be decided by parents/guardians","8.33%, To be decided by the local authority","8.33%, to be decided by teachers","No Mention","Chairperson: Parents/Guardians\nMember-Convener - Head-Teacher","No Mention","-","No mention","No Mention","-","NA","NA","SCPCR constituted","Free Transportation","Free Special Learning and Support Materials","No Mention"]
["Himachal Pradesh","Parents belonging to BPL category","a) SC\nb) ST\nc) OBC\nd) BPL family","No Mention","No Mention","NA","No Mention","No Mention","No Mention","No Mention","No Mention","Distance/Transport Allowance","Free textbooks,\nWriting Material,\nUniforms","-","0-1.5\nMin 25 children","0-3\nMin 25 children","Free Special Learning and Support Material.","No Mention","1) Hospital/ANM\n2) Anganwadi Record\n3) Self-declaration by parent/guardian","No Mention","Infrastructure based only as per the Schedule of the Act.","-",null,"As per govt. notification No; EDN-C-F (10)-7/2010, dated 6th March, 2010","NA","NA","NA","NA","NA","NA","NA","NA","Can hire teachers temporarily in case of delay in filling of vacancies at remunerations specified by the State Govt.","-","Academic Auth shall design and implement a process of school quality assessment on a regular basis.","Special Training for children identified by local auth/ SMC based on periodical assessment of learning progress.","-","NA","NA","NA","Distance/Transport Allowance","Free special learning and support material.","No Mention"]
["J&K","RTE Not Applicable","RTE Not Applicable","RTE Not Applicable","RTE Not Applicable","RTE Not Applicable","RTE Not Applicable","RTE Not Applicable","RTE Not Applicable","RTE Not Applicable","RTE Not Applicable","RTE Not Applicable","RTE Not Applicable","RTE Not Applicable","RTE Not Applicable","RTE Not Applicable","RTE Not Applicable","RTE Not Applicable","RTE Not Applicable","RTE Not Applicable","RTE Not Applicable","RTE Not Applicable","RTE Not Applicable","RTE Not Applicable","RTE Not Applicable","RTE Not Applicable","RTE Not Applicable","RTE Not Applicable","RTE Not Applicable","RTE Not Applicable","RTE Not Applicable","RTE Not Applicable","RTE Not Applicable","RTE Not Applicable","RTE Not Applicable","RTE Not Applicable","RTE Not Applicable","RTE Not Applicable","RTE Not Applicable","SCPCR constituted","RTE Not Applicable","RTE Not Applicable","RTE Not Applicable"]
["Jharkhand","Work in Progress","Work in Progress","Work in Progress","Work in Progress","Work in Progress","Work in Progress","Work in Progress","Work in Progress","Work in Progress","Work in Progress","Work in Progress","Work in Progress","Work in Progress","Work in Progress","Work in Progress","Work in Progress","Work in Progress","Work in Progress","Work in Progress","Work in Progress","Work in Progress","Work in Progress","Work in Progress","Work in Progress","Work in Progress","Work in Progress","Work in Progress","Work in Progress","Work in Progress","Work in Progress","Work in Progress","Work in Progress","Work in Progress","Work in Progress","Work in Progress","Work in Progress","NA","NA","Yet to be constituted","Work in Progress","Work in Progress","Work in Progress"]
["Karnataka","Other castes and communities excluding the Disadvantaged Group where parent/guardian's Annual Income  < Rs. 3.5 lakh","1) SC\n2) ST\n3) Category I\n4) Category IIA\n5) Category IIB\n6) Category IIIA\n7) Category IIIB\n8) Orphan\n9) Migrant/Stree children\n10) Child with special needs\n11) HIV infected/affected","Provisions of 25% reservation shall apply to the initial stage where pre-school education is available.","Every year before commencement of academic year.","Rs. 11848\nRs. 5924 (Pre-school)","Certificate of competent authority of the Revenue Department.","Electronic Fund Transfer\n1st Instalment: September\n2nd Instalment: January","Receipt of compliance report in Form III from school.","Same as Govt. Schools.\nRelaxation in case seats are not getting filled.","No Mention","Free special learning and support material","Free texbooks,\nWriting Materials,\nUniforms","Priority:\n1) SC: 7.5%\n2) ST: 1.5%\n3) Other cateogies of children and EWS: 16%","0-1,\nArea of ward in urban areas with City Corporations.","VI-VII: 0-3,\nVIII: 0-5,\nArea of ward in urban areas with City Corporations.","Appropriate and safe transport arrangements by govt./local auth","No Mention","1) Hospital/ANM\n2) Anganwadi Record\n3) Self-declaration by parent/guardian","Same as Govt. Schools.\nRelaxation in case seats are not getting filled.","Infrastructure based only as per the Schedule of the Act.\nProvisions of Karnataka Education Act, 1983 shall apply muttaties muttandies.","-","Single Committee","16 members","50%","No Mention","13 members/75%","No Mention","One member, To be decided by local authority","One member, To be decided by BEO.","No Mention","NA","SMC can hire teachers/instructors temporarily where there is need.","Health worker and Anganwadi  worker to be ex-officio members.","No Mention","Special Training for children identified by local auth/ SMC based on periodical assessment of learning progress.","-","NA","NA","NA","Appropriate and safe transport arrangements by govt./local auth","Free special learning and support material","No Mention"]
["Kerala","Children of parents/guardians belonging to BPL category","Male, Female or Transgender belonging to \na) SC\nb) ST \nc) Families engaged in fishing, coir making, clay pottery, cane and bamboo work, weaving and other eligible communities defined by State Govt.\nd) Orphans\ne) HIV infected, Disabled , children above 14 years who are late enrolments","State Govt. to provide ECE for ages 3-6 based on policy to be formulated.\nInterim arrangement of opening a new Senior Pre-primary class in all schools for ages 5-6.","Every year in September","NA","No Mention","Electronic Payment\n1st Instalment: September\n2nd Instalment: January","1) Payment to be made only if there is no vacancy in neighbourhood govt. and govt. aided schools.\n2) Min 80% attendance and Pupil Cumulative Record","Same as govt. schools","Draw of lots","Free Transport","Free textbooks,\nWriting Materials,\nUniforms,\nFree transport and residential facility if applicable","Priority:\n15%- Disadvantaged Groups,\n10% - Weaker Sections\nWhere no govt, aided or unaided school is available in neighbourhood, children can enroll in special category schools and reimbursements shall be made to them.","0-1","0-3","Free transport,\nHome Based education in case of severe disability","No Mention","1) Hospital/ANM\n2) Anganwadi Record\n3) Self-declaration by parent/guardian","Same as govt. schools","Infrastructure based only as per the Schedule of the Act.","Dedicated Website for registration. Information would be publicly visible.\n\nNew private schools have to prove essentiality before opening as identified by school mapping.","Single Committee","<750 Students - 16 members\n>750 students - 20 members","50%","Representation","75%","No Mention","One, Ward-Division member","One, To be decided by teachers","Three persons to be invited by Convenor","Chairperson: From among parent members\nMember-convener: Head Teacher","1) Arrange to monitor learning outcomes as presecribed by Academic authority. Monitor student and teacher absenteeism.\n2) Can hire teachers temporarily in case of delay in filling of vacancies.","Private Aided schools have to also have an SMC\n\nOne member from among local educationists\nOne, School Leader","a) State govt. to conduct evaluation of learning outcomes in 5% of schools through external agency.\nb) SMC to also measure learning outcomes.","No Mention","-","NA","NA","NA","a) Free transport\nb) Home based education in case of severe disability","a) Special teaching/learning material\nb) Improved assistive devices\nc) Healthcare","Pre-service and in-service training having Special course to impart education to the disabled"]
["Madhya Pradesh","NA","NA","25% reservation applicable for pre-primary classes wherever available.","No Mention","Rs. 2607","NA","Single Instalment: End of academic session in March","No Mention","Same as Govt. Schools.\nRelaxation in case seats are not getting filled.","No Mention","No Mention","No Mention","-","Rural: Village and adjoining villages.\nUrban: Ward and adjoining wards and villages.\n","3 km from the limit specified under Class I-V","Appropriate and safe transport arrangements by govt./local auth","No Mention","1) Hospital/ANM\n2) Anganwadi Record","Same as Govt. Schools.\nRelaxation in case seats are not getting filled.","Infrastructure based requirements only.","-","Single Committee","Primary School: 16 members\nSecondary School: 18 members","No Mention","One among Parents/Guardians of child belonging to each category: SC/ST/OBC who have secured highest marks in respective category in classes I-IV and V-VII for primary and middle schools respectively. ","75%,\nPrimary School: Parents/Guardian of children who have secured highest marks in classes- I-IV and V-VII for primary and middle schools respectively .","No Mention","Two members,\nUrban: One woman councillor nominated by Mayor/Chairperson .Rural: One woman panch nominated by Sarpanch. ","Head Teacher and senior most female teacher","May be invited if such services are useful for school development.","Chairperson: From among parents,\nMember-Secretary: Head-Teacher","No Mention","-","SCERT to design and implement a process of holistic school quality assessment on a regular basis.","Special Training for children identified by local auth/ SMC based on periodical assessment of learning progress.","-","NA","NA","SCPCR constituted","Appropriate and safe transport arrangements by govt./local auth","No Mention","No Mention"]
["Maharashtra","a) VJNT- Vimukta Jati and Nomadic Tribes\nb) OBC\nc) Special backward classes\nd) Religious Minorities\ne) Parents with annual income < Rs. 1,00,000","a) SC\nb) ST\nc) Any other category specified by the state govt.","25% reservation applicable for pre-primary classes wherever available.","No Mention","Rs. 5,329","a) Income Certificate issued by Revenue Officer not below the rank of Tehsildar.\nb) Caste Certificate issues by Revenue Officer not below the rank of Deputy Collector.","1st Instalment: October 30,\n2nd Instalment: April 30 or close of academic year whichever is later.","Verification of attendance by the Education Officer.","Same as Govt. Schools.\nRelaxation in case seats are not getting filled.","Draw of lots","Free special learning and support material.","Free textbooks,\nWriting Materials,\nUniforms","a) Preference to the girl child in 25% quota\nb) Total number of seats at entry level or class I should not be less than the number of seats in any other class.\nc) Reimbursement for pre-school children admissible when children enter class I.\nd) Aided school not to get additional grant for reimbursement under 25% quota.","0-1, minimum 20 children of ages 6-11 years.","0-3, Minimum 20 children.","Appropriate and safe transport arrangements by govt./local auth","a) Adhaar Card\nb) Passport\nc) Election IC\nd) Electricity Bill\ne) Telephone Bill\nf) Water Bill\ng) House Tax receipt","1) Hospital/ANM\n2) Anganwadi Record\n3) Self-declaration by parent/guardian.\nIn case of Disadvantaged Group/EWS, declaration should be certified by Sarpanch in village, notified officer in semi-urban/urban area.","Same as Govt. Schools.\nRelaxation in case seats are not getting filled.","Infrastructure based only as per the Schedule of the Act.","-","Single Committee","NA","50%","Adequate representation","75%, To be elected by the parents/guardians.","2 members (at least one girl) with no voting rights.","From among 25% quota for local auth/members of management/teachers/educationists/child development experts. ","From among 25% quota for local auth/members of management/teachers/educationists/child development experts. ","No Mention","Chairperson: From among parents,\nMember-Secretary: Head-Teacher","No Mention","-","a) Academic Authority to design process of holistic school quality assessment. \nB) Implementation of assessment by BEO etc.\nc) Periodic evaluation of block, district and state level institutions at least once every five years.","Special Training for out of school children identified by local authority.","-","NA","NA","Constituted on Jul 24, 2007\nvide\nNotification No.\nबाहआ - २००६/ प्र.क्र. १३८/ का-३","Appropriate and safe transport arrangements by govt./local auth","Free special learning and support material.","-"]
["Manipur","a) Backward Classes \nb) Minorities\nc) Other classes where Annual Income\n< Rs. 40,000","a) SC\nb) ST\nc) Orphans\nd) Children with special needs\ne) HIV affected/infected children","No Mention","Every year in December","NA","No Mention","1st Instalment (50%): September,\n2nd Instalment (50%): January","1st Intalment: Verification of Enrolment.\n2nd Instalment: Verification of enrolment and min attendance of 80% every month.","Same as Govt. Schools.\nRelaxation in case seats are not getting filled.","No Mention","Free special learning and support material","Separate notification to be issued.","-","0-1","0-3","Tranport Arrangements,\nHome based education in case of severe disability.","No Mention","1) Hospital/ANM\n2) Anganwadi Record\n3) Self-declaration by parent/guardian\n4) Horoscope","Same as Govt. Schools.\nRelaxation in case seats are not getting filled.","Infrastructure based only as per the Schedule of the Act.","-","Single Committee","No Mention","50%","No Mention","75%","One (8.33%) local educationist.","One (8.33%) for elected member of local authority.","Head Master.","No Mention","Chairperson: Parent\nMember-Convener: Head Teacher","No Mention","-","SCERT to design and implement a process of holistic school quality assessment on a regular basis.","Special training for children identified by SMC/Local Authority.\nTo be based on periodical assessment of learning progress","-","NA","NA","NA","Tranport Arrangements,\nHome based education in case of severe disability.","Free special learning and support material","No Mention"]
["Meghalaya","NA","NA","No Mention","No Mention","NA","No Mention","No Mention","No Mention","Same as Govt. Schools.\nRelaxation in case seats are not getting filled.","No Mention","Free special learning and support material","Free texbooks,\nWriting Materials,\nUniforms","-","0-1","0-3","Tranport Arrangements","No Mention","1) Hospital/ANM\n2) Anganwadi Record\n3) Self-declaration by parent/guardian","Same as Govt. Schools.\nRelaxation in case seats are not getting filled.","Infrastructure based only.","-","Single Committee","No Mention","No Mention","No Mention","75%","8.33%, To be decided by parents.","8.33%, To be decided by local Authority","8.33%, To be decided by teachers","No Mention","Chairperson- parent,\nMember-Convener - Head Teacher","No Mention","-","Directorate of Educational Research and Training to design and implement a process of holistic school quality assessment.","Special training for children identified by SMC/Local Authority.\nTo be based on periodical assessment of learning progress","-","Constituted on 21st March 2012","Constituted on 2nd Feb 2012","Will be constituted soon after abolishing REPA","Tranport Arrangements","Free special learning and support material","No Mention"]
["Mizoram","a) Child belonging to BPL category","a) Child belonging to BPL category","No Mention","No Mention","NA","No Mention","Single Instalment: November","Verification of Enrolment","Same as Govt. Schools.\nRelaxation in case seats are not getting filled.","No Mention","No Mention","No Mention","-","0-1","0-3","Transportation Arrangements","No Mention","1) Hospital/ANM\n2) Anganwadi Record\n3) Self-declaration by parent/guardian\n4) Baptisma Certificate","Same as Govt. Schools.\nRelaxation in case seats are not getting filled.","Infrastructure based only as per the Schedule of the Act.","-","Single Committee","-","No Mention","No Mention","75%","8.33% from among local educationists/children, To be decided by Parents","8.33%, To be decided by the local authority","8.33%, to be decided by teachers","No Mention","Chairperson: Parent,\nMember-Convener: Head Teacher","No Mention","-","SCERT to design and implement a process of holistic school quality assessment on a regular basis.","Special training for children identified by SMC/Local Authority based on periodical assessment of learning progress","-","NA","NA","SCPCR constituted","Transportation Arrangements","No Mention","No Mention"]
["Nagaland","Work in Progress","Work in Progress","Work in Progress","Work in Progress","Work in Progress","Work in Progress","Work in Progress","Work in Progress","Work in Progress","Work in Progress","Work in Progress","Work in Progress","Work in Progress","Work in Progress","Work in Progress","Work in Progress","Work in Progress","Work in Progress","Work in Progress","Work in Progress","Work in Progress","Work in Progress","Work in Progress","Work in Progress","Work in Progress","Work in Progress","Work in Progress","Work in Progress","Work in Progress","Work in Progress","Work in Progress","Work in Progress","Work in Progress","Work in Progress","Work in Progress","Work in Progress","NA","NA","NA","Work in Progress","Work in Progress","Work in Progress"]
["Orissa","NA","NA","No Mention","No Mention","NA","No Mention","No Mention","No Mention","Same as Govt. Schools.\nRelaxation in case seats are not getting filled.","No Mention","Special learning and support material","No Mention","-","0-1","0-3","Appropriate arrangement by govt./local auth","No Mention","1) Hospital/ANM\n2) Anganwadi Record\n3) Self-declaration by parent/guardian","Same as Govt. Schools.\nRelaxation in case of vacant seats.","Infrastructure based only","-","Single Committee","12-16 Members","No Mention","No Mention","75%","8.33% for local educationists/children, To be decided by parents in the Comm.","8.33%, To be decided by local authority","8.33%, to be decided by teachers","No Mention","Chairperson: Parent,\nMember-Convener: Head Teacher","No Mention","-","No mention","Special Training for children identified by local auth/ SMC.","-","NA","NA","NA","Appropriate arrangement by govt./local auth","Free special learning and support material","No Mention"]
["Punjab","NA","NA","25% reservation applicable for pre-primary classes wherever available.","Every year by Jun 30th","NA","No Mention","To be notified","1) Payment to be made only if there is no vacancy in neighbourhood govt. and govt. aided schools.\n2) Reimbursement would be least of the two proportions of salaries of teachers/staff paid by govt. and private unaided schools.","Same as govt. schools. Relaxation of criterion in case of vacancies arising out of unavailability of children in neighbourhood.","No Mention","No Mention","Free text books,\nWriting Materials,\nUniform","Where state school is not available in neighbourhood, children can enroll in private unaided schools and reimbursements shall be made to them.","0-1","0-3","Transport Arrangements","No Mention","1. Hospital/Nursing Home/ANM/Village Chowkidar\n2. Anganwadi record\n3. Self-declaration by Parent-Guardian","Class I-V: 0-1 km or ward of Municipal Corp (whichever is more)\nClass VI-VIII: 0-3 km or ward of Municipal Corp (whichever is more)","Infrastructure based only as per the Schedule of the Act.","NA","1) General House\n2) Executive Committee","General House- one parent of each student, teachers, staff, representative of PRI\n\nExecutive Committee-\n12 (Where students <100)\n24 (where students btw 101-250)\n32 (where students >250)","50% of the members from among parents/guardians (75%)","No Mention","75% of the members of Executive Committee","All students of class IV and above to be members of General House.\n\n8% members of the executive committee to be from local educationists/children to be decided by children.","8% of the Executive Committee to be decided by local authority",null,"No Mention",null,"No Mention","8% reservation for teachers in Executive Committee.\n\nHead teacher to be ex-officio member.","No mention","No Mention","-","NA","NA","Constituted on Apr 15, 2011\nvide Notification No. 5/1/2006- 1SS/916","Relaxation of neighbourhood criterion","Transport Arrangements","No Mention"]
["Rajasthan","NA","NA","No Mention","Every Year","NA","No Mention","1st Instalment: October,\n2nd Instalment: June","Verification of Enrolment","Geographical Limits of concerned Gram Panchayat/Nagar Palika/Nagar Parishad/Nagar Nigam.\nPreference to children residing in the same village/municipal ward where school is situated.","Draw of lots","free special learning and support material","No Mention","-","0-1","0-2","Transport Arrangements","No Mention","1) Hospital/ANM\n2) Anganwadi Record\n3) Self-declaration by parents/guardian","Geographical Limits of concerned Gram Panchayat/Nagar Palika/Nagar Parishad/Nagar Nigam.\nPreference to children residing in the same village/municipal ward where school is situated.","As per Rajasthan Non-government Educational Institutions Act, 1989","-","1) Committee\n2) Executive Committee","1) Committee: All Parent/Guardians, all teachers, elected person of local auth where school is situated, other elected persons of local auth residing in same village/ward\n2) Executive Committee: 15 members","50% of Executive Committee","Appropriate representation","11 members in Executive Comm elected by SMC","One local educationist/student in Executive Comm nominated by other members.","Person elected to the ward of local body where school is situated","Head Master in Executive comm,\nOne Teacher preferably a lady","No Mention","Chairperson: Parent\nMember Secretary: Headmaster","Grievance redressal for children/Parents.\n","-","No mention","Special Training for children identified by local auth/SMC based on periodical assessment of learning progress","-","NA","NA","Constituted on Feb 23, 2010\nvide\nNotification No.\nF/DWCD /ICDS/ Uni-Cons/ 09-10/ 11919","Appropriate and safe transport arrangements by govt./local authority","Free special learning and support material","No Mention"]
["Sikkim","NA","NA","No Mention","No Mention","NA","No Mention","No Mention","No Mention","Relaxation of criterion in case seats remain vacant.","No Mention","Free special learning and support material","Free textbooks,\nWriting Materials,\nUniforms","-","0-1","0-3","Transport arrangements","No Mention","1) Hospital/ANM\n2) Anganwadi Record\n3) Self-declaration by parent/guardian\n4) Certificate issues by local Auth","Relaxation of criterion in case seats remain vacant.","Infrastructure based only as per the Schedule of the Act.","-","Single Committee","No Mention","No Mention","No Mention","75%","8.33% for local educationists/children, To be decided by parents in the Comm.","8.33%, To be decided by local authority","8.33%, To be decided by teachers","No Mention","Chairperson: Parent","No Mention","-","No mention","Special Training for children identified by local auth and SMC based on periodical assessment of learning progress","-","NA","NA","Constituted on Ja 10, 2008\nvide\nNotification No. 49/ WCWD/ 2008","Appropriate and safe transport arrangements by govt./local authority","Free special learning and support material","No Mention"]
["Tamil Nadu","Annual Income of parents/guardian \n< Rs. 2,00,000","a) SC\nb) ST\nc) Socially and Educationally backward class/group\nd)  Orphan\ne) HIV affected\nf) Transgender\ng) Child of a scavenger","No Mention","No Mention","Pre-primary: Rs. 5924\nClass I - VIII: Rs. 11,848","NA","1st Instalment: September\n2nd Instalment: March","Verification of enrolment","Same as Govt. Schools.\nRelaxation in case seats are not getting filled.","No Mention","Free special learning and support material.","Free textbooks, writing materials and uniforms","-","0-1","0-3","Appropriate and safe transport arrangements by govt./local auth","NA","1) Hospital/ANM \n2) Anganwadi Record\n3) Self-Declaration by Parent/Guardian","Same as Govt. Schools.\nRelaxation in case seats are not getting filled.","Infrastructure based requirements only.","-","Single Committee","Not less than 9 members",0.5,"Proportionate representation to parents of disadvantaged groups/weaker sections","75%","8.33% from among local educationists/children, To be decided by Parents","8.33%, To be decided by local authority","8.33%, To be decided by teachers","Not more than three persons for advice on child protection, health & nutrition and child psychology","1) Chairperson: Parent\n2) Member-Convener: Head Teacher","No Mention","-","Academic Auth shall \n1) Design and implement a process of school quality assessment on a regular basis.\n2) Undertake periodic performance appraisal of individuals and institutions.","Special Training for children identified by SMC.","-","NA","NA","NA","Appropriate and safe transport arrangements by govt./local authority","Free special learning and support material.","No Mention"]
["Tripura","a) Parents belong to BPL category","a) SC\nb) ST\nc) OBC","No Mention","No Mention","NA","No Mention","No Mention","No Mention","Same as govt. schools. No mention of relaxation of criterion.","No Mention","No Mention","No Mention","-","0-1","0-3","Appropriate arrangement by govt./local auth","No Mention","1) Hospital/ANM 2) Anganwadi Record\n3) Self-Declaration by Parent/Guardian\n4) Medical examination for \"hard to reach children\" like orphans etc.","Same as govt. schools. No mention of relaxation of criterion.","Infrastructure based only as per the Schedule of the Act.","-","Single Committee","12-24 members","No Mention","Proportionate representation to parents of disadvantaged groups/weaker sections","75%","8.33%, To be decided by parents in the comm","8.33%, To be decided by local authority","8.33%, to be decided by teachers","No Mention","1) Chairperson: Parent\n2) Member-Convener: Head Teacher","No Mention","-","No Mention","Special Training for children identified by SMC/local auth/ based on periodical assessment of learning progress.","-","NA","NA","NA","Appropriate and safe transport arrangements by govt./local authority","No Mention","No Mention"]
["Uttarakhand","a) Annual Income \n< Rs. 55,000","a) SC\nb) ST\nc) Orphans\nd) Child depending on widow/divorcee mother whose annual income is < Rs. 80,000\ne) Disabled or whose parents are diabled whose annual income < Rs. 4.5 Lakh\nf) HIV affected/infected children","Applicable at the initial stage where pre-school education is available.","Reservation at the initial stage of admission","Rs. 16,596","No Mention","Time-frame of reimbursement to be decided by State level comm headed by PS/Secy Finance","Private school should be the designated neighbourhood school.","Relaxation of criterion in case seats remain vacant due to non-availability of children","DEO shall notify a calendar for admission for 25% quota","No Mention","Textbooks,\nMid-day Meals,\nUniforms for girls,\nUniforms for SC/ST and BPL boys","50% of children belonging to disadvantaged group shall be girls.","0-1\nwhere population > 200\nRural:  Children \n> 25\nUrban:  children \n> 40 ","0-3\nwhere population > 400\nRural:  Children \n> 25\nUrban:  children \n> 40 ","No Mention","No Mention","1) Hospital/ANM 2) Anganwadi Record\n3) Self-Declaration by Parent/Guardian\n4) Village/Gram/Parivar Register","Relaxation fo neighbourhood criterion in case seats remain vacant due to non-availability of children","Infrastructure based only as per the Schedule of the Act.","-","1) General Body\n2) Executive Council","General Body: Chairperson, Vice-chairperson, Head teacher\nExecutive Council: ","50% in the Executive Council","One each from SC/ST/OBC/CWSN","Executive Council\n0-60 children: 8 parents\n61-180 children: 10 parents\n180+ children: 12 parents","No Mention","Executive Council:\n1) Gram Pradhan, Up-pradhan of Village Panchayat and elected member of the ward in which the school is situated.\n2) Panchayat Secretary","No Mention","No Mention","Chairperson: From among the parents","1) Teacher Absenteeism: SMC with approval of at least 30% members shall inform the deputy BEO for necessary action against absent/irregular teachers which shall take action and report back to SMC. If SMC is not satisfied, it can appeal to DEO or SCPCR. \n2) In remote areas, SMC can make a reco to DEO not to transfer any extraordinary teacher.","Training of General body members of the SMC to be done by the Dept. of Elementary Education ","1) SCERT to monitor levels of learning through third-party evaluation.\n2) Designated Auth to monitor learning levels through smaple surveys and bring out block-wise annual reports on quality of education.","Special Training for both out of school (never enrolled/droupout) and weak children based on Periodical assessment of learning progress","Teachers shall be held accountable for acquisition of learning levels for weaker children","NA","NA","NA","No Mention","No Mention","No Mention"]
["Uttar Pradesh","Annual Income < Rs. 2,50,000","NA","No Mention","No Mention","Rs. 3,716","NA","No Mention","Verification by Zila Shiksha Adhikari.\nIf wrong information is submitted, penalty is twice the amount of reimbursement received.","Relaxation fo neighbourhood criterion in case seats remain vacant due to non-availability of children","No Mention","free special learning and support material and equipments","Freetexbooks,\nUniforms","-","0-1 where population is > 300","0-3 where population > 800","Transport arrangements","No Mention","1) Hospital/ANM \n2) Anganwadi Record\n3) Self-Declaration by Parent/Guardian\n4) Village Register of birth/death","Relaxation fo neighbourhood criterion in case seats remain vacant due to non-availability of children","Infrastructure based only as per the Schedule of the Act.","-","No Mention","15 members",0.5,"One each from SC/ST/OBC/EWS","11 out of 15 members.\nMinimum parent of one child from each class of the school.","No Mention","One member, To be decided by local authority","One Member from among teachers.\nOne Member from among ANM.","1 Lekhpal, To be nominated by DM","No Mention","No Mention","-","a) Annual independent assessment conducted on a random sample for each block.\nb) Biennial Assessment by external agency. Detailed parameters provided.","Special Training for children identified by local auth/SMC based on periodical assessment of learning progress","-","NA","NA","NA","Transport arrangements","Free special learning and support material and equipments","No Mention"]
["West Bengal","Either Parent belonging to BPL","1) Proportionate Representation in 25%:\na) SC: 22%\nb) ST: 6%\nc) OBC-A: 10%\nd) OBC-B: 7%\ne) Weaker Sections: 55%\n2) Preference to BPL among SC/ST/OBCs if applications exceed availability of seats.\n3) 50% reservation for girls.","No Mention","No Mention","NA","NA","Reimbursement Amount to be notified within three months from beginning of the academic year.","1) On the basis of recommendations of the District Inspector of Schools.\n2) As per quarterly requisition of category-wise enrolment data.","No Mention","Draw of lots in presence of local representatives.\nTwo phase lottery-\n1) General Lottery\n2) Second lottery for left over candidates in each category- SC/ST/OBC.","No Mention","Study Materials,\nUniform\n(To be reimbursed)","-","Class I-IV: 1) 0-1 (rural)\n2) 0-0.5 (Urban)","Class V-VIII:\n1) 0-2 (rural)\n2) 0-1 (urban)","Home Based education as part of Special Training for sever disability.","No Mention","1) Records from hospital/sub-centre.\n2) ICDS centre certificate of a registered medical practitioner.","No Mention","Infrastructure based requirements only.","Dedicated Website for Recognition system.","Single Committee","Min 12 members","50%","Among Parents/Guadian:\n1) Class I: One SC out of total two.\n2) Class II: One ST out of total two.\n3) Class III: One OBC-A and One SC out of total three.\n4) Class IV: One OBC-B out of total three.\n5) Proportionate representation for the minorities (if any)","10 Members","No Mention","One Member","One, Head-Teacher","No Mention","No Mention about Chairperson; Secretary: Head-Teacher","No Mention","Elaborate procedure outlined for holding elections","No Mention","Special Training for children identified by School Authority with quarterly submission of the progress report to DPO, SSA. ","-","NA","NA","NA","Home Based education as part of Special Training for sever disability.","No Mention","No Mention"]

{"sheet":"RTE_State_Rules_Matrix","index":3,"n_rows":32,"n_cols":15,"rows_kept":32,"cut":false,"hidden":true,"merged":[]}
[]
[null,"Category"]
[null,"Sub-Category ","EWS Criterion","Disadvantaged Group Criterion","Pre-School Education","Frequency of Calculation of\nPer-child Cost","Per-child Cost per year in Rupees","Document Proof for EWS/Disadvantaged","Payment Schedule","Payment Condition","Neighbourhood Criterion","Procedure of Admission","Special Entitlements for Disabled","Entitlements","Misc"]
[1,"Andhra Pradesh",{"$f":"HLOOKUP(\"EWS Criterion\",MasterSheet!B2:AQ31,MATCH(B4,MasterSheet!A3:A31,0)+1,FALSE)","v":"Annual Income of parents\n< Rs. 60,000 of:\na) Backward Classes \nb) Minorities\nc) Other classes"},{"$f":"HLOOKUP(\"Disadvantaged Group Criterion\",MasterSheet!B2:AQ31,MATCH(B4,MasterSheet!A3:A31,0)+1,FALSE)","v":"a) SC\nb) ST\nc) Orphans\nd) Migrant and Street Children\ne) Children with Special Needs\nf) HIV affected/infected children"},{"$f":"HLOOKUP(\"Pre-School Education\",MasterSheet!B2:AQ31,MATCH(B4,MasterSheet!A3:A31,0)+1,FALSE)","v":"No Mention"},{"$f":"HLOOKUP(\"Frequency of Calculation of\nPer-child Cost\",MasterSheet!B2:AQ31,MATCH(B4,MasterSheet!A3:A31,0)+1,FALSE)","v":"Every year in December"},{"$f":"HLOOKUP(\"Per-child Cost per year in Rupees\",MasterSheet!B2:AQ31,MATCH(B4,MasterSheet!A3:A31,0)+1,FALSE)","v":"-"},{"$f":"HLOOKUP(\"Document Proof for EWS/Disadvantaged\",MasterSheet!B2:AQ31,MATCH(B4,MasterSheet!A3:A31,0)+1,FALSE)","v":"No Mention"},{"$f":"HLOOKUP(\"Payment Schedule\",MasterSheet!B2:AQ31,MATCH(B4,MasterSheet!A3:A31,0)+1,FALSE)","v":"Payment through RTGS/NEFT\nIst Instalment: 50%\nin September\n2nd Instalment: 50% in\nJanuary"},{"$f":"HLOOKUP(\"Payment Condition\",MasterSheet!B2:AQ31,MATCH(B4,MasterSheet!A3:A31,0)+1,FALSE)","v":"Verification of Enrolment\nby DEO, Minimum Attendance of kids @ 80%\nevery month,student\nlearning outcomes\n"},{"$f":"HLOOKUP(\"Neighbourhood Criterion\",MasterSheet!B2:AQ31,MATCH(B4,MasterSheet!A3:A31,0)+1,FALSE)","v":"Same as Govt. Schools"},{"$f":"HLOOKUP(\"Procedure of Admission\",MasterSheet!B2:AQ31,MATCH(B4,MasterSheet!A3:A31,0)+1,FALSE)","v":"No Mention"},{"$f":"HLOOKUP(\"Special Entitlements for Disabled\",MasterSheet!B2:AQ31,MATCH(B4,MasterSheet!A3:A31,0)+1,FALSE)","v":"No Mention"},{"$f":"HLOOKUP(\"Entitlements\",MasterSheet!B2:AQ31,MATCH(B4,MasterSheet!A3:A31,0)+1,FALSE)","v":"Free text books,\nOne Notebook per subject,\nOther Writing Material,\nMid-day meals,\nUniforms "},{"$f":"HLOOKUP(\"Misc\",MasterSheet!B2:AQ31,MATCH(B4,MasterSheet!A3:A31,0)+1,FALSE)","v":"Priority in Admission under Section 12-\nDisadvantaged Groups: 19%\na) Orphanse, HIV,\nDisabled: 5%\nb) SC: 10%\nc) ST: 4%\nWeaker Sections: 6%"}]
[2,"Arunachal Pradesh",{"$f":"HLOOKUP(\"EWS Criterion\",MasterSheet!B2:AQ31,MATCH(B5,MasterSheet!A3:A31,0)+1,FALSE)","v":"Annual Income of Parents/Guardian less than the minimum limit specified in BPL families by the State govt."},{"$f":"HLOOKUP(\"Disadvantaged Group Criterion\",MasterSheet!B2:AQ31,MATCH(B5,MasterSheet!A3:A31,0)+1,FALSE)","v":"NA"},{"$f":"HLOOKUP(\"Pre-School Education\",MasterSheet!B2:AQ31,MATCH(B5,MasterSheet!A3:A31,0)+1,FALSE)","v":"Provisions of 25% reservation shall apply to pre-primary classes wherever applicable."},{"$f":"HLOOKUP(\"Frequency of Calculation of\nPer-child Cost\",MasterSheet!B2:AQ31,MATCH(B5,MasterSheet!A3:A31,0)+1,FALSE)","v":"No Mention"},{"$f":"HLOOKUP(\"Per-child Cost per year in Rupees\",MasterSheet!B2:AQ31,MATCH(B5,MasterSheet!A3:A31,0)+1,FALSE)","v":"NA"},{"$f":"HLOOKUP(\"Document Proof for EWS/Disadvantaged\",MasterSheet!B2:AQ31,MATCH(B5,MasterSheet!A3:A31,0)+1,FALSE)","v":"NA"},{"$f":"HLOOKUP(\"Payment Schedule\",MasterSheet!B2:AQ31,MATCH(B5,MasterSheet!A3:A31,0)+1,FALSE)","v":"No Mention"},{"$f":"HLOOKUP(\"Payment Condition\",MasterSheet!B2:AQ31,MATCH(B5,MasterSheet!A3:A31,0)+1,FALSE)","v":"No Mention"},{"$f":"HLOOKUP(\"Neighbourhood Criterion\",MasterSheet!B2:AQ31,MATCH(B5,MasterSheet!A3:A31,0)+1,FALSE)","v":"Same as Govt. Schools.\nRelaxation in case seats are not getting filled."},{"$f":"HLOOKUP(\"Procedure of Admission\",MasterSheet!B2:AQ31,MATCH(B5,MasterSheet!A3:A31,0)+1,FALSE)","v":"No Mention"},{"$f":"HLOOKUP(\"Special Entitlements for Disabled\",MasterSheet!B2:AQ31,MATCH(B5,MasterSheet!A3:A31,0)+1,FALSE)","v":"Free special learning and support material"},{"$f":"HLOOKUP(\"Entitlements\",MasterSheet!B2:AQ31,MATCH(B5,MasterSheet!A3:A31,0)+1,FALSE)","v":"Free textbooks, writing materials and uniforms"},{"$f":"HLOOKUP(\"Misc\",MasterSheet!B2:AQ31,MATCH(B5,MasterSheet!A3:A31,0)+1,FALSE)","v":"-"}]
[3,"Assam",{"$f":"HLOOKUP(\"EWS Criterion\",MasterSheet!B2:AQ31,MATCH(B6,MasterSheet!A3:A31,0)+1,FALSE)","v":"NA"},{"$f":"HLOOKUP(\"Disadvantaged Group Criterion\",MasterSheet!B2:AQ31,MATCH(B6,MasterSheet!A3:A31,0)+1,FALSE)","v":"NA"},{"$f":"HLOOKUP(\"Pre-School Education\",MasterSheet!B2:AQ31,MATCH(B6,MasterSheet!A3:A31,0)+1,FALSE)","v":"No Mention"},{"$f":"HLOOKUP(\"Frequency of Calculation of\nPer-child Cost\",MasterSheet!B2:AQ31,MATCH(B6,MasterSheet!A3:A31,0)+1,FALSE)","v":"No Mention"},{"$f":"HLOOKUP(\"Per-child Cost per year in Rupees\",MasterSheet!B2:AQ31,MATCH(B6,MasterSheet!A3:A31,0)+1,FALSE)","v":"NA"},{"$f":"HLOOKUP(\"Document Proof for EWS/Disadvantaged\",MasterSheet!B2:AQ31,MATCH(B6,MasterSheet!A3:A31,0)+1,FALSE)","v":"No Mention"},{"$f":"HLOOKUP(\"Payment Schedule\",MasterSheet!B2:AQ31,MATCH(B6,MasterSheet!A3:A31,0)+1,FALSE)","v":"1st Instalment (50%): September\n2nd Instalment (50%): January"},{"$f":"HLOOKUP(\"Payment Condition\",MasterSheet!B2:AQ31,MATCH(B6,MasterSheet!A3:A31,0)+1,FALSE)","v":"No Mention"},{"$f":"HLOOKUP(\"Neighbourhood Criterion\",MasterSheet!B2:AQ31,MATCH(B6,MasterSheet!A3:A31,0)+1,FALSE)","v":"Same as Govt. Schools.\nRelaxation in case seats are not getting filled."},{"$f":"HLOOKUP(\"Procedure of Admission\",MasterSheet!B2:AQ31,MATCH(B6,MasterSheet!A3:A31,0)+1,FALSE)","v":"No Mention"},{"$f":"HLOOKUP(\"Special Entitlements for Disabled\",MasterSheet!B2:AQ31,MATCH(B6,MasterSheet!A3:A31,0)+1,FALSE)","v":"Special Learning and Support Material."},{"$f":"HLOOKUP(\"Entitlements\",MasterSheet!B2:AQ31,MATCH(B6,MasterSheet!A3:A31,0)+1,FALSE)","v":"Free textbooks,\nLearning Materials,\nUniforms"},{"$f":"HLOOKUP(\"Misc\",MasterSheet!B2:AQ31,MATCH(B6,MasterSheet!A3:A31,0)+1,FALSE)","v":"-"}]
[4,"Bihar",{"$f":"HLOOKUP(\"EWS Criterion\",MasterSheet!B2:AQ31,MATCH(B7,MasterSheet!A3:A31,0)+1,FALSE)","v":"Work in Progress"},{"$f":"HLOOKUP(\"Disadvantaged Group Criterion\",MasterSheet!B2:AQ31,MATCH(B7,MasterSheet!A3:A31,0)+1,FALSE)","v":"Work in Progress"},{"$f":"HLOOKUP(\"Pre-School Education\",MasterSheet!B2:AQ31,MATCH(B7,MasterSheet!A3:A31,0)+1,FALSE)","v":"Work in Progress"},{"$f":"HLOOKUP(\"Frequency of Calculation of\nPer-child Cost\",MasterSheet!B2:AQ31,MATCH(B7,MasterSheet!A3:A31,0)+1,FALSE)","v":"Work in Progress"},{"$f":"HLOOKUP(\"Per-child Cost per year in Rupees\",MasterSheet!B2:AQ31,MATCH(B7,MasterSheet!A3:A31,0)+1,FALSE)","v":"Work in Progress"},{"$f":"HLOOKUP(\"Document Proof for EWS/Disadvantaged\",MasterSheet!B2:AQ31,MATCH(B7,MasterSheet!A3:A31,0)+1,FALSE)","v":"Work in Progress"},{"$f":"HLOOKUP(\"Payment Schedule\",MasterSheet!B2:AQ31,MATCH(B7,MasterSheet!A3:A31,0)+1,FALSE)","v":"Work in Progress"},{"$f":"HLOOKUP(\"Payment Condition\",MasterSheet!B2:AQ31,MATCH(B7,MasterSheet!A3:A31,0)+1,FALSE)","v":"Work in Progress"},{"$f":"HLOOKUP(\"Neighbourhood Criterion\",MasterSheet!B2:AQ31,MATCH(B7,MasterSheet!A3:A31,0)+1,FALSE)","v":"Work in Progress"},{"$f":"HLOOKUP(\"Procedure of Admission\",MasterSheet!B2:AQ31,MATCH(B7,MasterSheet!A3:A31,0)+1,FALSE)","v":"Work in Progress"},{"$f":"HLOOKUP(\"Special Entitlements for Disabled\",MasterSheet!B2:AQ31,MATCH(B7,MasterSheet!A3:A31,0)+1,FALSE)","v":"Work in Progress"},{"$f":"HLOOKUP(\"Entitlements\",MasterSheet!B2:AQ31,MATCH(B7,MasterSheet!A3:A31,0)+1,FALSE)","v":"Work in Progress"},{"$f":"HLOOKUP(\"Misc\",MasterSheet!B2:AQ31,MATCH(B7,MasterSheet!A3:A31,0)+1,FALSE)","v":"Work in Progress"}]
[5,"Chhattisgarh",{"$f":"HLOOKUP(\"EWS Criterion\",MasterSheet!B2:AQ31,MATCH(B8,MasterSheet!A3:A31,0)+1,FALSE)","v":"Work in Progress"},{"$f":"HLOOKUP(\"Disadvantaged Group Criterion\",MasterSheet!B2:AQ31,MATCH(B8,MasterSheet!A3:A31,0)+1,FALSE)","v":"Work in Progress"},{"$f":"HLOOKUP(\"Pre-School Education\",MasterSheet!B2:AQ31,MATCH(B8,MasterSheet!A3:A31,0)+1,FALSE)","v":"Work in Progress"},{"$f":"HLOOKUP(\"Frequency of Calculation of\nPer-child Cost\",MasterSheet!B2:AQ31,MATCH(B8,MasterSheet!A3:A31,0)+1,FALSE)","v":"Work in Progress"},{"$f":"HLOOKUP(\"Per-child Cost per year in Rupees\",MasterSheet!B2:AQ31,MATCH(B8,MasterSheet!A3:A31,0)+1,FALSE)","v":"Work in Progress"},{"$f":"HLOOKUP(\"Document Proof for EWS/Disadvantaged\",MasterSheet!B2:AQ31,MATCH(B8,MasterSheet!A3:A31,0)+1,FALSE)","v":"Work in Progress"},{"$f":"HLOOKUP(\"Payment Schedule\",MasterSheet!B2:AQ31,MATCH(B8,MasterSheet!A3:A31,0)+1,FALSE)","v":"Work in Progress"},{"$f":"HLOOKUP(\"Payment Condition\",MasterSheet!B2:AQ31,MATCH(B8,MasterSheet!A3:A31,0)+1,FALSE)","v":"Work in Progress"},{"$f":"HLOOKUP(\"Neighbourhood Criterion\",MasterSheet!B2:AQ31,MATCH(B8,MasterSheet!A3:A31,0)+1,FALSE)","v":"Work in Progress"},{"$f":"HLOOKUP(\"Procedure of Admission\",MasterSheet!B2:AQ31,MATCH(B8,MasterSheet!A3:A31,0)+1,FALSE)","v":"Work in Progress"},{"$f":"HLOOKUP(\"Special Entitlements for Disabled\",MasterSheet!B2:AQ31,MATCH(B8,MasterSheet!A3:A31,0)+1,FALSE)","v":"Work in Progress"},{"$f":"HLOOKUP(\"Entitlements\",MasterSheet!B2:AQ31,MATCH(B8,MasterSheet!A3:A31,0)+1,FALSE)","v":"Work in Progress"},{"$f":"HLOOKUP(\"Misc\",MasterSheet!B2:AQ31,MATCH(B8,MasterSheet!A3:A31,0)+1,FALSE)","v":"Work in Progress"}]
[6,"Delhi",{"$f":"HLOOKUP(\"EWS Criterion\",MasterSheet!B2:AQ31,MATCH(B9,MasterSheet!A3:A31,0)+1,FALSE)","v":"Annual Income of parents < Rs. 1 Lakh and a resident of Delhi since the last three years."},{"$f":"HLOOKUP(\"Disadvantaged Group Criterion\",MasterSheet!B2:AQ31,MATCH(B9,MasterSheet!A3:A31,0)+1,FALSE)","v":"a) SC\nb) ST\nc) OBC (non creamy)\nd) Disabled\ne) Orphan"},{"$f":"HLOOKUP(\"Pre-School Education\",MasterSheet!B2:AQ31,MATCH(B9,MasterSheet!A3:A31,0)+1,FALSE)","v":"Provisions of 25% reservation shall apply to all three classes- Pre-nursery, LKG, UKG"},{"$f":"HLOOKUP(\"Frequency of Calculation of\nPer-child Cost\",MasterSheet!B2:AQ31,MATCH(B9,MasterSheet!A3:A31,0)+1,FALSE)","v":"Every year in December"},{"$f":"HLOOKUP(\"Per-child Cost per year in Rupees\",MasterSheet!B2:AQ31,MATCH(B9,MasterSheet!A3:A31,0)+1,FALSE)","v":14280},{"$f":"HLOOKUP(\"Document Proof for EWS/Disadvantaged\",MasterSheet!B2:AQ31,MATCH(B9,MasterSheet!A3:A31,0)+1,FALSE)","v":"a) Income Certificate issued by revenue officer\nb) BPL Card (yellow), AAY Card (pink)"},{"$f":"HLOOKUP(\"Payment Schedule\",MasterSheet!B2:AQ31,MATCH(B9,MasterSheet!A3:A31,0)+1,FALSE)","v":"No Mention"},{"$f":"HLOOKUP(\"Payment Condition\",MasterSheet!B2:AQ31,MATCH(B9,MasterSheet!A3:A31,0)+1,FALSE)","v":"No Mention"},{"$f":"HLOOKUP(\"Neighbourhood Criterion\",MasterSheet!B2:AQ31,MATCH(B9,MasterSheet!A3:A31,0)+1,FALSE)","v":"Same as Govt. Schools.\nRelaxation in case seats are not getting filled."},{"$f":"HLOOKUP(\"Procedure of Admission\",MasterSheet!B2:AQ31,MATCH(B9,MasterSheet!A3:A31,0)+1,FALSE)","v":"Draw of lots. Procedure to be videographed."},{"$f":"HLOOKUP(\"Special Entitlements for Disabled\",MasterSheet!B2:AQ31,MATCH(B9,MasterSheet!A3:A31,0)+1,FALSE)","v":"free special learning and support material"},{"$f":"HLOOKUP(\"Entitlements\",MasterSheet!B2:AQ31,MATCH(B9,MasterSheet!A3:A31,0)+1,FALSE)","v":"free text books, writing materials and uniforms "},{"$f":"HLOOKUP(\"Misc\",MasterSheet!B2:AQ31,MATCH(B9,MasterSheet!A3:A31,0)+1,FALSE)","v":"25% Reservation applicable to all three classes- Pre-nursery, LKG, UKG"}]
[7,"Goa",{"$f":"HLOOKUP(\"EWS Criterion\",MasterSheet!B2:AQ31,MATCH(B10,MasterSheet!A3:A31,0)+1,FALSE)","v":"No Mention"},{"$f":"HLOOKUP(\"Disadvantaged Group Criterion\",MasterSheet!B2:AQ31,MATCH(B10,MasterSheet!A3:A31,0)+1,FALSE)","v":"No Mention"},{"$f":"HLOOKUP(\"Pre-School Education\",MasterSheet!B2:AQ31,MATCH(B10,MasterSheet!A3:A31,0)+1,FALSE)","v":"No Mention"},{"$f":"HLOOKUP(\"Frequency of Calculation of\nPer-child Cost\",MasterSheet!B2:AQ31,MATCH(B10,MasterSheet!A3:A31,0)+1,FALSE)","v":"Committee for reimbursement shall meet once every six months"},{"$f":"HLOOKUP(\"Per-child Cost per year in Rupees\",MasterSheet!B2:AQ31,MATCH(B10,MasterSheet!A3:A31,0)+1,FALSE)","v":"Rs. 5,553"},{"$f":"HLOOKUP(\"Document Proof for EWS/Disadvantaged\",MasterSheet!B2:AQ31,MATCH(B10,MasterSheet!A3:A31,0)+1,FALSE)","v":"No Mention"},{"$f":"HLOOKUP(\"Payment Schedule\",MasterSheet!B2:AQ31,MATCH(B10,MasterSheet!A3:A31,0)+1,FALSE)","v":"1st Instalment (50%): September,\n2nd Instalment (50%): January"},{"$f":"HLOOKUP(\"Payment Condition\",MasterSheet!B2:AQ31,MATCH(B10,MasterSheet!A3:A31,0)+1,FALSE)","v":"Verification of enrolment before 1st Reimbursement,\nVerification of enrolment and min 80% every monh."},{"$f":"HLOOKUP(\"Neighbourhood Criterion\",MasterSheet!B2:AQ31,MATCH(B10,MasterSheet!A3:A31,0)+1,FALSE)","v":"Same as Govt. Schools.\nRelaxation in case seats are not getting filled."},{"$f":"HLOOKUP(\"Procedure of Admission\",MasterSheet!B2:AQ31,MATCH(B10,MasterSheet!A3:A31,0)+1,FALSE)","v":"No Mention"},{"$f":"HLOOKUP(\"Special Entitlements for Disabled\",MasterSheet!B2:AQ31,MATCH(B10,MasterSheet!A3:A31,0)+1,FALSE)","v":"free special learning and support material"},{"$f":"HLOOKUP(\"Entitlements\",MasterSheet!B2:AQ31,MATCH(B10,MasterSheet!A3:A31,0)+1,FALSE)","v":"Free text books,\nWriting Materials,\nUniform"},{"$f":"HLOOKUP(\"Misc\",MasterSheet!B2:AQ31,MATCH(B10,MasterSheet!A3:A31,0)+1,FALSE)","v":"-"}]
[8,"Gujarat",{"$f":"HLOOKUP(\"EWS Criterion\",MasterSheet!B2:AQ31,MATCH(B11,MasterSheet!A3:A31,0)+1,FALSE)","v":"Families listed in BPL lists"},{"$f":"HLOOKUP(\"Disadvantaged Group Criterion\",MasterSheet!B2:AQ31,MATCH(B11,MasterSheet!A3:A31,0)+1,FALSE)","v":"a) SC\nb) ST\nc) OBC"},{"$f":"HLOOKUP(\"Pre-School Education\",MasterSheet!B2:AQ31,MATCH(B11,MasterSheet!A3:A31,0)+1,FALSE)","v":0},{"$f":"HLOOKUP(\"Frequency of Calculation of\nPer-child Cost\",MasterSheet!B2:AQ31,MATCH(B11,MasterSheet!A3:A31,0)+1,FALSE)","v":"No Mention"},{"$f":"HLOOKUP(\"Per-child Cost per year in Rupees\",MasterSheet!B2:AQ31,MATCH(B11,MasterSheet!A3:A31,0)+1,FALSE)","v":"NA"},{"$f":"HLOOKUP(\"Document Proof for EWS/Disadvantaged\",MasterSheet!B2:AQ31,MATCH(B11,MasterSheet!A3:A31,0)+1,FALSE)","v":"No Mention"},{"$f":"HLOOKUP(\"Payment Schedule\",MasterSheet!B2:AQ31,MATCH(B11,MasterSheet!A3:A31,0)+1,FALSE)","v":"No Mention"},{"$f":"HLOOKUP(\"Payment Condition\",MasterSheet!B2:AQ31,MATCH(B11,MasterSheet!A3:A31,0)+1,FALSE)","v":"No Mention"},{"$f":"HLOOKUP(\"Neighbourhood Criterion\",MasterSheet!B2:AQ31,MATCH(B11,MasterSheet!A3:A31,0)+1,FALSE)","v":"Same as Govt. Schools.\nRelaxation in case seats are not getting filled."},{"$f":"HLOOKUP(\"Procedure of Admission\",MasterSheet!B2:AQ31,MATCH(B11,MasterSheet!A3:A31,0)+1,FALSE)","v":"No Mention"},{"$f":"HLOOKUP(\"Special Entitlements for Disabled\",MasterSheet!B2:AQ31,MATCH(B11,MasterSheet!A3:A31,0)+1,FALSE)","v":"No Mention"},{"$f":"HLOOKUP(\"Entitlements\",MasterSheet!B2:AQ31,MATCH(B11,MasterSheet!A3:A31,0)+1,FALSE)","v":"Free textbooks"},{"$f":"HLOOKUP(\"Misc\",MasterSheet!B2:AQ31,MATCH(B11,MasterSheet!A3:A31,0)+1,FALSE)","v":"-"}]
[9,"Haryana",{"$f":"HLOOKUP(\"EWS Criterion\",MasterSheet!B2:AQ31,MATCH(B12,MasterSheet!A3:A31,0)+1,FALSE)","v":"No Mention"},{"$f":"HLOOKUP(\"Disadvantaged Group Criterion\",MasterSheet!B2:AQ31,MATCH(B12,MasterSheet!A3:A31,0)+1,FALSE)","v":"No Mention"},{"$f":"HLOOKUP(\"Pre-School Education\",MasterSheet!B2:AQ31,MATCH(B12,MasterSheet!A3:A31,0)+1,FALSE)","v":"State Govt. to provide ECE for ages 3-6."},{"$f":"HLOOKUP(\"Frequency of Calculation of\nPer-child Cost\",MasterSheet!B2:AQ31,MATCH(B12,MasterSheet!A3:A31,0)+1,FALSE)","v":"No Mention"},{"$f":"HLOOKUP(\"Per-child Cost per year in Rupees\",MasterSheet!B2:AQ31,MATCH(B12,MasterSheet!A3:A31,0)+1,FALSE)","v":"-"},{"$f":"HLOOKUP(\"Document Proof for EWS/Disadvantaged\",MasterSheet!B2:AQ31,MATCH(B12,MasterSheet!A3:A31,0)+1,FALSE)","v":"No Mention"},{"$f":"HLOOKUP(\"Payment Schedule\",MasterSheet!B2:AQ31,MATCH(B12,MasterSheet!A3:A31,0)+1,FALSE)","v":"No Mention"},{"$f":"HLOOKUP(\"Payment Condition\",MasterSheet!B2:AQ31,MATCH(B12,MasterSheet!A3:A31,0)+1,FALSE)","v":"No Mention"},{"$f":"HLOOKUP(\"Neighbourhood Criterion\",MasterSheet!B2:AQ31,MATCH(B12,MasterSheet!A3:A31,0)+1,FALSE)","v":"Same as Govt. Schools.\nRelaxation in case seats are not getting filled."},{"$f":"HLOOKUP(\"Procedure of Admission\",MasterSheet!B2:AQ31,MATCH(B12,MasterSheet!A3:A31,0)+1,FALSE)","v":"No Mention"},{"$f":"HLOOKUP(\"Special Entitlements for Disabled\",MasterSheet!B2:AQ31,MATCH(B12,MasterSheet!A3:A31,0)+1,FALSE)","v":"Free Special Learning and support material"},{"$f":"HLOOKUP(\"Entitlements\",MasterSheet!B2:AQ31,MATCH(B12,MasterSheet!A3:A31,0)+1,FALSE)","v":"Free texbooks,\nWriting Material,\nUniform"},{"$f":"HLOOKUP(\"Misc\",MasterSheet!B2:AQ31,MATCH(B12,MasterSheet!A3:A31,0)+1,FALSE)","v":"-"}]
[10,"Himachal Pradesh",{"$f":"HLOOKUP(\"EWS Criterion\",MasterSheet!B2:AQ31,MATCH(B13,MasterSheet!A3:A31,0)+1,FALSE)","v":"Parents belonging to BPL category"},{"$f":"HLOOKUP(\"Disadvantaged Group Criterion\",MasterSheet!B2:AQ31,MATCH(B13,MasterSheet!A3:A31,0)+1,FALSE)","v":"a) SC\nb) ST\nc) OBC\nd) BPL family"},{"$f":"HLOOKUP(\"Pre-School Education\",MasterSheet!B2:AQ31,MATCH(B13,MasterSheet!A3:A31,0)+1,FALSE)","v":"No Mention"},{"$f":"HLOOKUP(\"Frequency of Calculation of\nPer-child Cost\",MasterSheet!B2:AQ31,MATCH(B13,MasterSheet!A3:A31,0)+1,FALSE)","v":"No Mention"},{"$f":"HLOOKUP(\"Per-child Cost per year in Rupees\",MasterSheet!B2:AQ31,MATCH(B13,MasterSheet!A3:A31,0)+1,FALSE)","v":"NA"},{"$f":"HLOOKUP(\"Document Proof for EWS/Disadvantaged\",MasterSheet!B2:AQ31,MATCH(B13,MasterSheet!A3:A31,0)+1,FALSE)","v":"No Mention"},{"$f":"HLOOKUP(\"Payment Schedule\",MasterSheet!B2:AQ31,MATCH(B13,MasterSheet!A3:A31,0)+1,FALSE)","v":"No Mention"},{"$f":"HLOOKUP(\"Payment Condition\",MasterSheet!B2:AQ31,MATCH(B13,MasterSheet!A3:A31,0)+1,FALSE)","v":"No Mention"},{"$f":"HLOOKUP(\"Neighbourhood Criterion\",MasterSheet!B2:AQ31,MATCH(B13,MasterSheet!A3:A31,0)+1,FALSE)","v":"No Mention"},{"$f":"HLOOKUP(\"Procedure of Admission\",MasterSheet!B2:AQ31,MATCH(B13,MasterSheet!A3:A31,0)+1,FALSE)","v":"No Mention"},{"$f":"HLOOKUP(\"Special Entitlements for Disabled\",MasterSheet!B2:AQ31,MATCH(B13,MasterSheet!A3:A31,0)+1,FALSE)","v":"Distance/Transport Allowance"},{"$f":"HLOOKUP(\"Entitlements\",MasterSheet!B2:AQ31,MATCH(B13,MasterSheet!A3:A31,0)+1,FALSE)","v":"Free textbooks,\nWriting Material,\nUniforms"},{"$f":"HLOOKUP(\"Misc\",MasterSheet!B2:AQ31,MATCH(B13,MasterSheet!A3:A31,0)+1,FALSE)","v":"-"}]
[11,"J&K",{"$f":"HLOOKUP(\"EWS Criterion\",MasterSheet!B2:AQ31,MATCH(B14,MasterSheet!A3:A31,0)+1,FALSE)","v":"RTE Not Applicable"},{"$f":"HLOOKUP(\"Disadvantaged Group Criterion\",MasterSheet!B2:AQ31,MATCH(B14,MasterSheet!A3:A31,0)+1,FALSE)","v":"RTE Not Applicable"},{"$f":"HLOOKUP(\"Pre-School Education\",MasterSheet!B2:AQ31,MATCH(B14,MasterSheet!A3:A31,0)+1,FALSE)","v":"RTE Not Applicable"},{"$f":"HLOOKUP(\"Frequency of Calculation of\nPer-child Cost\",MasterSheet!B2:AQ31,MATCH(B14,MasterSheet!A3:A31,0)+1,FALSE)","v":"RTE Not Applicable"},{"$f":"HLOOKUP(\"Per-child Cost per year in Rupees\",MasterSheet!B2:AQ31,MATCH(B14,MasterSheet!A3:A31,0)+1,FALSE)","v":"RTE Not Applicable"},{"$f":"HLOOKUP(\"Document Proof for EWS/Disadvantaged\",MasterSheet!B2:AQ31,MATCH(B14,MasterSheet!A3:A31,0)+1,FALSE)","v":"RTE Not Applicable"},{"$f":"HLOOKUP(\"Payment Schedule\",MasterSheet!B2:AQ31,MATCH(B14,MasterSheet!A3:A31,0)+1,FALSE)","v":"RTE Not Applicable"},{"$f":"HLOOKUP(\"Payment Condition\",MasterSheet!B2:AQ31,MATCH(B14,MasterSheet!A3:A31,0)+1,FALSE)","v":"RTE Not Applicable"},{"$f":"HLOOKUP(\"Neighbourhood Criterion\",MasterSheet!B2:AQ31,MATCH(B14,MasterSheet!A3:A31,0)+1,FALSE)","v":"RTE Not Applicable"},{"$f":"HLOOKUP(\"Procedure of Admission\",MasterSheet!B2:AQ31,MATCH(B14,MasterSheet!A3:A31,0)+1,FALSE)","v":"RTE Not Applicable"},{"$f":"HLOOKUP(\"Special Entitlements for Disabled\",MasterSheet!B2:AQ31,MATCH(B14,MasterSheet!A3:A31,0)+1,FALSE)","v":"RTE Not Applicable"},{"$f":"HLOOKUP(\"Entitlements\",MasterSheet!B2:AQ31,MATCH(B14,MasterSheet!A3:A31,0)+1,FALSE)","v":"RTE Not Applicable"},{"$f":"HLOOKUP(\"Misc\",MasterSheet!B2:AQ31,MATCH(B14,MasterSheet!A3:A31,0)+1,FALSE)","v":"RTE Not Applicable"}]
[12,"Jharkhand",{"$f":"HLOOKUP(\"EWS Criterion\",MasterSheet!B2:AQ31,MATCH(B15,MasterSheet!A3:A31,0)+1,FALSE)","v":"Work in Progress"},{"$f":"HLOOKUP(\"Disadvantaged Group Criterion\",MasterSheet!B2:AQ31,MATCH(B15,MasterSheet!A3:A31,0)+1,FALSE)","v":"Work in Progress"},{"$f":"HLOOKUP(\"Pre-School Education\",MasterSheet!B2:AQ31,MATCH(B15,MasterSheet!A3:A31,0)+1,FALSE)","v":"Work in Progress"},{"$f":"HLOOKUP(\"Frequency of Calculation of\nPer-child Cost\",MasterSheet!B2:AQ31,MATCH(B15,MasterSheet!A3:A31,0)+1,FALSE)","v":"Work in Progress"},{"$f":"HLOOKUP(\"Per-child Cost per year in Rupees\",MasterSheet!B2:AQ31,MATCH(B15,MasterSheet!A3:A31,0)+1,FALSE)","v":"Work in Progress"},{"$f":"HLOOKUP(\"Document Proof for EWS/Disadvantaged\",MasterSheet!B2:AQ31,MATCH(B15,MasterSheet!A3:A31,0)+1,FALSE)","v":"Work in Progress"},{"$f":"HLOOKUP(\"Payment Schedule\",MasterSheet!B2:AQ31,MATCH(B15,MasterSheet!A3:A31,0)+1,FALSE)","v":"Work in Progress"},{"$f":"HLOOKUP(\"Payment Condition\",MasterSheet!B2:AQ31,MATCH(B15,MasterSheet!A3:A31,0)+1,FALSE)","v":"Work in Progress"},{"$f":"HLOOKUP(\"Neighbourhood Criterion\",MasterSheet!B2:AQ31,MATCH(B15,MasterSheet!A3:A31,0)+1,FALSE)","v":"Work in Progress"},{"$f":"HLOOKUP(\"Procedure of Admission\",MasterSheet!B2:AQ31,MATCH(B15,MasterSheet!A3:A31,0)+1,FALSE)","v":"Work in Progress"},{"$f":"HLOOKUP(\"Special Entitlements for Disabled\",MasterSheet!B2:AQ31,MATCH(B15,MasterSheet!A3:A31,0)+1,FALSE)","v":"Work in Progress"},{"$f":"HLOOKUP(\"Entitlements\",MasterSheet!B2:AQ31,MATCH(B15,MasterSheet!A3:A31,0)+1,FALSE)","v":"Work in Progress"},{"$f":"HLOOKUP(\"Misc\",MasterSheet!B2:AQ31,MATCH(B15,MasterSheet!A3:A31,0)+1,FALSE)","v":"Work in Progress"}]
[13,"Karnataka",{"$f":"HLOOKUP(\"EWS Criterion\",MasterSheet!B2:AQ31,MATCH(B16,MasterSheet!A3:A31,0)+1,FALSE)","v":"Other castes and communities excluding the Disadvantaged Group where parent/guardian's Annual Income  < Rs. 3.5 lakh"},{"$f":"HLOOKUP(\"Disadvantaged Group Criterion\",MasterSheet!B2:AQ31,MATCH(B16,MasterSheet!A3:A31,0)+1,FALSE)","v":"1) SC\n2) ST\n3) Category I\n4) Category IIA\n5) Category IIB\n6) Category IIIA\n7) Category IIIB\n8) Orphan\n9) Migrant/Stree children\n10) Child with special needs\n11) HIV infected/affected"},{"$f":"HLOOKUP(\"Pre-School Education\",MasterSheet!B2:AQ31,MATCH(B16,MasterSheet!A3:A31,0)+1,FALSE)","v":"Provisions of 25% reservation shall apply to the initial stage where pre-school education is available."},{"$f":"HLOOKUP(\"Frequency of Calculation of\nPer-child Cost\",MasterSheet!B2:AQ31,MATCH(B16,MasterSheet!A3:A31,0)+1,FALSE)","v":"Every year before commencement of academic year."},{"$f":"HLOOKUP(\"Per-child Cost per year in Rupees\",MasterSheet!B2:AQ31,MATCH(B16,MasterSheet!A3:A31,0)+1,FALSE)","v":"Rs. 11848\nRs. 5924 (Pre-school)"},{"$f":"HLOOKUP(\"Document Proof for EWS/Disadvantaged\",MasterSheet!B2:AQ31,MATCH(B16,MasterSheet!A3:A31,0)+1,FALSE)","v":"Certificate of competent authority of the Revenue Department."},{"$f":"HLOOKUP(\"Payment Schedule\",MasterSheet!B2:AQ31,MATCH(B16,MasterSheet!A3:A31,0)+1,FALSE)","v":"Electronic Fund Transfer\n1st Instalment: September\n2nd Instalment: January"},{"$f":"HLOOKUP(\"Payment Condition\",MasterSheet!B2:AQ31,MATCH(B16,MasterSheet!A3:A31,0)+1,FALSE)","v":"Receipt of compliance report in Form III from school."},{"$f":"HLOOKUP(\"Neighbourhood Criterion\",MasterSheet!B2:AQ31,MATCH(B16,MasterSheet!A3:A31,0)+1,FALSE)","v":"Same as Govt. Schools.\nRelaxation in case seats are not getting filled."},{"$f":"HLOOKUP(\"Procedure of Admission\",MasterSheet!B2:AQ31,MATCH(B16,MasterSheet!A3:A31,0)+1,FALSE)","v":"No Mention"},{"$f":"HLOOKUP(\"Special Entitlements for Disabled\",MasterSheet!B2:AQ31,MATCH(B16,MasterSheet!A3:A31,0)+1,FALSE)","v":"Free special learning and support material"},{"$f":"HLOOKUP(\"Entitlements\",MasterSheet!B2:AQ31,MATCH(B16,MasterSheet!A3:A31,0)+1,FALSE)","v":"Free texbooks,\nWriting Materials,\nUniforms"},{"$f":"HLOOKUP(\"Misc\",MasterSheet!B2:AQ31,MATCH(B16,MasterSheet!A3:A31,0)+1,FALSE)","v":"Priority:\n1) SC: 7.5%\n2) ST: 1.5%\n3) Other cateogies of children and EWS: 16%"}]
[14,"Kerala",{"$f":"HLOOKUP(\"EWS Criterion\",MasterSheet!B2:AQ31,MATCH(B17,MasterSheet!A3:A31,0)+1,FALSE)","v":"Children of parents/guardians belonging to BPL category"},{"$f":"HLOOKUP(\"Disadvantaged Group Criterion\",MasterSheet!B2:AQ31,MATCH(B17,MasterSheet!A3:A31,0)+1,FALSE)","v":"Male, Female or Transgender belonging to \na) SC\nb) ST \nc) Families engaged in fishing, coir making, clay pottery, cane and bamboo work, weaving and other eligible communities defined by State Govt.\nd) Orphans\ne) HIV infected, Disabled , children above 14 years who are late enrolments"},{"$f":"HLOOKUP(\"Pre-School Education\",MasterSheet!B2:AQ31,MATCH(B17,MasterSheet!A3:A31,0)+1,FALSE)","v":"State Govt. to provide ECE for ages 3-6 based on policy to be formulated.\nInterim arrangement of opening a new Senior Pre-primary class in all schools for ages 5-6."},{"$f":"HLOOKUP(\"Frequency of Calculation of\nPer-child Cost\",MasterSheet!B2:AQ31,MATCH(B17,MasterSheet!A3:A31,0)+1,FALSE)","v":"Every year in September"},{"$f":"HLOOKUP(\"Per-child Cost per year in Rupees\",MasterSheet!B2:AQ31,MATCH(B17,MasterSheet!A3:A31,0)+1,FALSE)","v":"NA"},{"$f":"HLOOKUP(\"Document Proof for EWS/Disadvantaged\",MasterSheet!B2:AQ31,MATCH(B17,MasterSheet!A3:A31,0)+1,FALSE)","v":"No Mention"},{"$f":"HLOOKUP(\"Payment Schedule\",MasterSheet!B2:AQ31,MATCH(B17,MasterSheet!A3:A31,0)+1,FALSE)","v":"Electronic Payment\n1st Instalment: September\n2nd Instalment: January"},{"$f":"HLOOKUP(\"Payment Condition\",MasterSheet!B2:AQ31,MATCH(B17,MasterSheet!A3:A31,0)+1,FALSE)","v":"1) Payment to be made only if there is no vacancy in neighbourhood govt. and govt. aided schools.\n2) Min 80% attendance and Pupil Cumulative Record"},{"$f":"HLOOKUP(\"Neighbourhood Criterion\",MasterSheet!B2:AQ31,MATCH(B17,MasterSheet!A3:A31,0)+1,FALSE)","v":"Same as govt. schools"},{"$f":"HLOOKUP(\"Procedure of Admission\",MasterSheet!B2:AQ31,MATCH(B17,MasterSheet!A3:A31,0)+1,FALSE)","v":"Draw of lots"},{"$f":"HLOOKUP(\"Special Entitlements for Disabled\",MasterSheet!B2:AQ31,MATCH(B17,MasterSheet!A3:A31,0)+1,FALSE)","v":"Free Transport"},{"$f":"HLOOKUP(\"Entitlements\",MasterSheet!B2:AQ31,MATCH(B17,MasterSheet!A3:A31,0)+1,FALSE)","v":"Free textbooks,\nWriting Materials,\nUniforms,\nFree transport and residential facility if applicable"},{"$f":"HLOOKUP(\"Misc\",MasterSheet!B2:AQ31,MATCH(B17,MasterSheet!A3:A31,0)+1,FALSE)","v":"Priority:\n15%- Disadvantaged Groups,\n10% - Weaker Sections\nWhere no govt, aided or unaided school is available in neighbourhood, children can enroll in special category schools and reimbursements shall be made to them."}]
[15,"Madhya Pradesh",{"$f":"HLOOKUP(\"EWS Criterion\",MasterSheet!B2:AQ31,MATCH(B18,MasterSheet!A3:A31,0)+1,FALSE)","v":"NA"},{"$f":"HLOOKUP(\"Disadvantaged Group Criterion\",MasterSheet!B2:AQ31,MATCH(B18,MasterSheet!A3:A31,0)+1,FALSE)","v":"NA"},{"$f":"HLOOKUP(\"Pre-School Education\",MasterSheet!B2:AQ31,MATCH(B18,MasterSheet!A3:A31,0)+1,FALSE)","v":"25% reservation applicable for pre-primary classes wherever available."},{"$f":"HLOOKUP(\"Frequency of Calculation of\nPer-child Cost\",MasterSheet!B2:AQ31,MATCH(B18,MasterSheet!A3:A31,0)+1,FALSE)","v":"No Mention"},{"$f":"HLOOKUP(\"Per-child Cost per year in Rupees\",MasterSheet!B2:AQ31,MATCH(B18,MasterSheet!A3:A31,0)+1,FALSE)","v":"Rs. 2607"},{"$f":"HLOOKUP(\"Document Proof for EWS/Disadvantaged\",MasterSheet!B2:AQ31,MATCH(B18,MasterSheet!A3:A31,0)+1,FALSE)","v":"NA"},{"$f":"HLOOKUP(\"Payment Schedule\",MasterSheet!B2:AQ31,MATCH(B18,MasterSheet!A3:A31,0)+1,FALSE)","v":"Single Instalment: End of academic session in March"},{"$f":"HLOOKUP(\"Payment Condition\",MasterSheet!B2:AQ31,MATCH(B18,MasterSheet!A3:A31,0)+1,FALSE)","v":"No Mention"},{"$f":"HLOOKUP(\"Neighbourhood Criterion\",MasterSheet!B2:AQ31,MATCH(B18,MasterSheet!A3:A31,0)+1,FALSE)","v":"Same as Govt. Schools.\nRelaxation in case seats are not getting filled."},{"$f":"HLOOKUP(\"Procedure of Admission\",MasterSheet!B2:AQ31,MATCH(B18,MasterSheet!A3:A31,0)+1,FALSE)","v":"No Mention"},{"$f":"HLOOKUP(\"Special Entitlements for Disabled\",MasterSheet!B2:AQ31,MATCH(B18,MasterSheet!A3:A31,0)+1,FALSE)","v":"No Mention"},{"$f":"HLOOKUP(\"Entitlements\",MasterSheet!B2:AQ31,MATCH(B18,MasterSheet!A3:A31,0)+1,FALSE)","v":"No Mention"},{"$f":"HLOOKUP(\"Misc\",MasterSheet!B2:AQ31,MATCH(B18,MasterSheet!A3:A31,0)+1,FALSE)","v":"-"}]
[16,"Maharashtra",{"$f":"HLOOKUP(\"EWS Criterion\",MasterSheet!B2:AQ31,MATCH(B19,MasterSheet!A3:A31,0)+1,FALSE)","v":"a) VJNT- Vimukta Jati and Nomadic Tribes\nb) OBC\nc) Special backward classes\nd) Religious Minorities\ne) Parents with annual income < Rs. 1,00,000"},{"$f":"HLOOKUP(\"Disadvantaged Group Criterion\",MasterSheet!B2:AQ31,MATCH(B19,MasterSheet!A3:A31,0)+1,FALSE)","v":"a) SC\nb) ST\nc) Any other category specified by the state govt."},{"$f":"HLOOKUP(\"Pre-School Education\",MasterSheet!B2:AQ31,MATCH(B19,MasterSheet!A3:A31,0)+1,FALSE)","v":"25% reservation applicable for pre-primary classes wherever available."},{"$f":"HLOOKUP(\"Frequency of Calculation of\nPer-child Cost\",MasterSheet!B2:AQ31,MATCH(B19,MasterSheet!A3:A31,0)+1,FALSE)","v":"No Mention"},{"$f":"HLOOKUP(\"Per-child Cost per year in Rupees\",MasterSheet!B2:AQ31,MATCH(B19,MasterSheet!A3:A31,0)+1,FALSE)","v":"Rs. 5,329"},{"$f":"HLOOKUP(\"Document Proof for EWS/Disadvantaged\",MasterSheet!B2:AQ31,MATCH(B19,MasterSheet!A3:A31,0)+1,FALSE)","v":"a) Income Certificate issued by Revenue Officer not below the rank of Tehsildar.\nb) Caste Certificate issues by Revenue Officer not below the rank of Deputy Collector."},{"$f":"HLOOKUP(\"Payment Schedule\",MasterSheet!B2:AQ31,MATCH(B19,MasterSheet!A3:A31,0)+1,FALSE)","v":"1st Instalment: October 30,\n2nd Instalment: April 30 or close of academic year whichever is later."},{"$f":"HLOOKUP(\"Payment Condition\",MasterSheet!B2:AQ31,MATCH(B19,MasterSheet!A3:A31,0)+1,FALSE)","v":"Verification of attendance by the Education Officer."},{"$f":"HLOOKUP(\"Neighbourhood Criterion\",MasterSheet!B2:AQ31,MATCH(B19,MasterSheet!A3:A31,0)+1,FALSE)","v":"Same as Govt. Schools.\nRelaxation in case seats are not getting filled."},{"$f":"HLOOKUP(\"Procedure of Admission\",MasterSheet!B2:AQ31,MATCH(B19,MasterSheet!A3:A31,0)+1,FALSE)","v":"Draw of lots"},{"$f":"HLOOKUP(\"Special Entitlements for Disabled\",MasterSheet!B2:AQ31,MATCH(B19,MasterSheet!A3:A31,0)+1,FALSE)","v":"Free special learning and support material."},{"$f":"HLOOKUP(\"Entitlements\",MasterSheet!B2:AQ31,MATCH(B19,MasterSheet!A3:A31,0)+1,FALSE)","v":"Free textbooks,\nWriting Materials,\nUniforms"},{"$f":"HLOOKUP(\"Misc\",MasterSheet!B2:AQ31,MATCH(B19,MasterSheet!A3:A31,0)+1,FALSE)","v":"a) Preference to the girl child in 25% quota\nb) Total number of seats at entry level or class I should not be less than the number of seats in any other class.\nc) Reimbursement for pre-school children admissible when children enter class I.\nd) Aided school not to get additional grant for reimbursement under 25% quota."}]
[17,"Manipur",{"$f":"HLOOKUP(\"EWS Criterion\",MasterSheet!B2:AQ31,MATCH(B20,MasterSheet!A3:A31,0)+1,FALSE)","v":"a) Backward Classes \nb) Minorities\nc) Other classes where Annual Income\n< Rs. 40,000"},{"$f":"HLOOKUP(\"Disadvantaged Group Criterion\",MasterSheet!B2:AQ31,MATCH(B20,MasterSheet!A3:A31,0)+1,FALSE)","v":"a) SC\nb) ST\nc) Orphans\nd) Children with special needs\ne) HIV affected/infected children"},{"$f":"HLOOKUP(\"Pre-School Education\",MasterSheet!B2:AQ31,MATCH(B20,MasterSheet!A3:A31,0)+1,FALSE)","v":"No Mention"},{"$f":"HLOOKUP(\"Frequency of Calculation of\nPer-child Cost\",MasterSheet!B2:AQ31,MATCH(B20,MasterSheet!A3:A31,0)+1,FALSE)","v":"Every year in December"},{"$f":"HLOOKUP(\"Per-child Cost per year in Rupees\",MasterSheet!B2:AQ31,MATCH(B20,MasterSheet!A3:A31,0)+1,FALSE)","v":"NA"},{"$f":"HLOOKUP(\"Document Proof for EWS/Disadvantaged\",MasterSheet!B2:AQ31,MATCH(B20,MasterSheet!A3:A31,0)+1,FALSE)","v":"No Mention"},{"$f":"HLOOKUP(\"Payment Schedule\",MasterSheet!B2:AQ31,MATCH(B20,MasterSheet!A3:A31,0)+1,FALSE)","v":"1st Instalment (50%): September,\n2nd Instalment (50%): January"},{"$f":"HLOOKUP(\"Payment Condition\",MasterSheet!B2:AQ31,MATCH(B20,MasterSheet!A3:A31,0)+1,FALSE)","v":"1st Intalment: Verification of Enrolment.\n2nd Instalment: Verification of enrolment and min attendance of 80% every month."},{"$f":"HLOOKUP(\"Neighbourhood Criterion\",MasterSheet!B2:AQ31,MATCH(B20,MasterSheet!A3:A31,0)+1,FALSE)","v":"Same as Govt. Schools.\nRelaxation in case seats are not getting filled."},{"$f":"HLOOKUP(\"Procedure of Admission\",MasterSheet!B2:AQ31,MATCH(B20,MasterSheet!A3:A31,0)+1,FALSE)","v":"No Mention"},{"$f":"HLOOKUP(\"Special Entitlements for Disabled\",MasterSheet!B2:AQ31,MATCH(B20,MasterSheet!A3:A31,0)+1,FALSE)","v":"Free special learning and support material"},{"$f":"HLOOKUP(\"Entitlements\",MasterSheet!B2:AQ31,MATCH(B20,MasterSheet!A3:A31,0)+1,FALSE)","v":"Separate notification to be issued."},{"$f":"HLOOKUP(\"Misc\",MasterSheet!B2:AQ31,MATCH(B20,MasterSheet!A3:A31,0)+1,FALSE)","v":"-"}]
[18,"Meghalaya",{"$f":"HLOOKUP(\"EWS Criterion\",MasterSheet!B2:AQ31,MATCH(B21,MasterSheet!A3:A31,0)+1,FALSE)","v":"NA"},{"$f":"HLOOKUP(\"Disadvantaged Group Criterion\",MasterSheet!B2:AQ31,MATCH(B21,MasterSheet!A3:A31,0)+1,FALSE)","v":"NA"},{"$f":"HLOOKUP(\"Pre-School Education\",MasterSheet!B2:AQ31,MATCH(B21,MasterSheet!A3:A31,0)+1,FALSE)","v":"No Mention"},{"$f":"HLOOKUP(\"Frequency of Calculation of\nPer-child Cost\",MasterSheet!B2:AQ31,MATCH(B21,MasterSheet!A3:A31,0)+1,FALSE)","v":"No Mention"},{"$f":"HLOOKUP(\"Per-child Cost per year in Rupees\",MasterSheet!B2:AQ31,MATCH(B21,MasterSheet!A3:A31,0)+1,FALSE)","v":"NA"},{"$f":"HLOOKUP(\"Document Proof for EWS/Disadvantaged\",MasterSheet!B2:AQ31,MATCH(B21,MasterSheet!A3:A31,0)+1,FALSE)","v":"No Mention"},{"$f":"HLOOKUP(\"Payment Schedule\",MasterSheet!B2:AQ31,MATCH(B21,MasterSheet!A3:A31,0)+1,FALSE)","v":"No Mention"},{"$f":"HLOOKUP(\"Payment Condition\",MasterSheet!B2:AQ31,MATCH(B21,MasterSheet!A3:A31,0)+1,FALSE)","v":"No Mention"},{"$f":"HLOOKUP(\"Neighbourhood Criterion\",MasterSheet!B2:AQ31,MATCH(B21,MasterSheet!A3:A31,0)+1,FALSE)","v":"Same as Govt. Schools.\nRelaxation in case seats are not getting filled."},{"$f":"HLOOKUP(\"Procedure of Admission\",MasterSheet!B2:AQ31,MATCH(B21,MasterSheet!A3:A31,0)+1,FALSE)","v":"No Mention"},{"$f":"HLOOKUP(\"Special Entitlements for Disabled\",MasterSheet!B2:AQ31,MATCH(B21,MasterSheet!A3:A31,0)+1,FALSE)","v":"Free special learning and support material"},{"$f":"HLOOKUP(\"Entitlements\",MasterSheet!B2:AQ31,MATCH(B21,MasterSheet!A3:A31,0)+1,FALSE)","v":"Free texbooks,\nWriting Materials,\nUniforms"},{"$f":"HLOOKUP(\"Misc\",MasterSheet!B2:AQ31,MATCH(B21,MasterSheet!A3:A31,0)+1,FALSE)","v":"-"}]
[19,"Mizoram",{"$f":"HLOOKUP(\"EWS Criterion\",MasterSheet!B2:AQ31,MATCH(B22,MasterSheet!A3:A31,0)+1,FALSE)","v":"a) Child belonging to BPL category"},{"$f":"HLOOKUP(\"Disadvantaged Group Criterion\",MasterSheet!B2:AQ31,MATCH(B22,MasterSheet!A3:A31,0)+1,FALSE)","v":"a) Child belonging to BPL category"},{"$f":"HLOOKUP(\"Pre-School Education\",MasterSheet!B2:AQ31,MATCH(B22,MasterSheet!A3:A31,0)+1,FALSE)","v":"No Mention"},{"$f":"HLOOKUP(\"Frequency of Calculation of\nPer-child Cost\",MasterSheet!B2:AQ31,MATCH(B22,MasterSheet!A3:A31,0)+1,FALSE)","v":"No Mention"},{"$f":"HLOOKUP(\"Per-child Cost per year in Rupees\",MasterSheet!B2:AQ31,MATCH(B22,MasterSheet!A3:A31,0)+1,FALSE)","v":"NA"},{"$f":"HLOOKUP(\"Document Proof for EWS/Disadvantaged\",MasterSheet!B2:AQ31,MATCH(B22,MasterSheet!A3:A31,0)+1,FALSE)","v":"No Mention"},{"$f":"HLOOKUP(\"Payment Schedule\",MasterSheet!B2:AQ31,MATCH(B22,MasterSheet!A3:A31,0)+1,FALSE)","v":"Single Instalment: November"},{"$f":"HLOOKUP(\"Payment Condition\",MasterSheet!B2:AQ31,MATCH(B22,MasterSheet!A3:A31,0)+1,FALSE)","v":"Verification of Enrolment"},{"$f":"HLOOKUP(\"Neighbourhood Criterion\",MasterSheet!B2:AQ31,MATCH(B22,MasterSheet!A3:A31,0)+1,FALSE)","v":"Same as Govt. Schools.\nRelaxation in case seats are not getting filled."},{"$f":"HLOOKUP(\"Procedure of Admission\",MasterSheet!B2:AQ31,MATCH(B22,MasterSheet!A3:A31,0)+1,FALSE)","v":"No Mention"},{"$f":"HLOOKUP(\"Special Entitlements for Disabled\",MasterSheet!B2:AQ31,MATCH(B22,MasterSheet!A3:A31,0)+1,FALSE)","v":"No Mention"},{"$f":"HLOOKUP(\"Entitlements\",MasterSheet!B2:AQ31,MATCH(B22,MasterSheet!A3:A31,0)+1,FALSE)","v":"No Mention"},{"$f":"HLOOKUP(\"Misc\",MasterSheet!B2:AQ31,MATCH(B22,MasterSheet!A3:A31,0)+1,FALSE)","v":"-"}]
[20,"Nagaland",{"$f":"HLOOKUP(\"EWS Criterion\",MasterSheet!B2:AQ31,MATCH(B23,MasterSheet!A3:A31,0)+1,FALSE)","v":"Work in Progress"},{"$f":"HLOOKUP(\"Disadvantaged Group Criterion\",MasterSheet!B2:AQ31,MATCH(B23,MasterSheet!A3:A31,0)+1,FALSE)","v":"Work in Progress"},{"$f":"HLOOKUP(\"Pre-School Education\",MasterSheet!B2:AQ31,MATCH(B23,MasterSheet!A3:A31,0)+1,FALSE)","v":"Work in Progress"},{"$f":"HLOOKUP(\"Frequency of Calculation of\nPer-child Cost\",MasterSheet!B2:AQ31,MATCH(B23,MasterSheet!A3:A31,0)+1,FALSE)","v":"Work in Progress"},{"$f":"HLOOKUP(\"Per-child Cost per year in Rupees\",MasterSheet!B2:AQ31,MATCH(B23,MasterSheet!A3:A31,0)+1,FALSE)","v":"Work in Progress"},{"$f":"HLOOKUP(\"Document Proof for EWS/Disadvantaged\",MasterSheet!B2:AQ31,MATCH(B23,MasterSheet!A3:A31,0)+1,FALSE)","v":"Work in Progress"},{"$f":"HLOOKUP(\"Payment Schedule\",MasterSheet!B2:AQ31,MATCH(B23,MasterSheet!A3:A31,0)+1,FALSE)","v":"Work in Progress"},{"$f":"HLOOKUP(\"Payment Condition\",MasterSheet!B2:AQ31,MATCH(B23,MasterSheet!A3:A31,0)+1,FALSE)","v":"Work in Progress"},{"$f":"HLOOKUP(\"Neighbourhood Criterion\",MasterSheet!B2:AQ31,MATCH(B23,MasterSheet!A3:A31,0)+1,FALSE)","v":"Work in Progress"},{"$f":"HLOOKUP(\"Procedure of Admission\",MasterSheet!B2:AQ31,MATCH(B23,MasterSheet!A3:A31,0)+1,FALSE)","v":"Work in Progress"},{"$f":"HLOOKUP(\"Special Entitlements for Disabled\",MasterSheet!B2:AQ31,MATCH(B23,MasterSheet!A3:A31,0)+1,FALSE)","v":"Work in Progress"},{"$f":"HLOOKUP(\"Entitlements\",MasterSheet!B2:AQ31,MATCH(B23,MasterSheet!A3:A31,0)+1,FALSE)","v":"Work in Progress"},{"$f":"HLOOKUP(\"Misc\",MasterSheet!B2:AQ31,MATCH(B23,MasterSheet!A3:A31,0)+1,FALSE)","v":"Work in Progress"}]
[21,"Orissa",{"$f":"HLOOKUP(\"EWS Criterion\",MasterSheet!B2:AQ31,MATCH(B24,MasterSheet!A3:A31,0)+1,FALSE)","v":"NA"},{"$f":"HLOOKUP(\"Disadvantaged Group Criterion\",MasterSheet!B2:AQ31,MATCH(B24,MasterSheet!A3:A31,0)+1,FALSE)","v":"NA"},{"$f":"HLOOKUP(\"Pre-School Education\",MasterSheet!B2:AQ31,MATCH(B24,MasterSheet!A3:A31,0)+1,FALSE)","v":"No Mention"},{"$f":"HLOOKUP(\"Frequency of Calculation of\nPer-child Cost\",MasterSheet!B2:AQ31,MATCH(B24,MasterSheet!A3:A31,0)+1,FALSE)","v":"No Mention"},{"$f":"HLOOKUP(\"Per-child Cost per year in Rupees\",MasterSheet!B2:AQ31,MATCH(B24,MasterSheet!A3:A31,0)+1,FALSE)","v":"NA"},{"$f":"HLOOKUP(\"Document Proof for EWS/Disadvantaged\",MasterSheet!B2:AQ31,MATCH(B24,MasterSheet!A3:A31,0)+1,FALSE)","v":"No Mention"},{"$f":"HLOOKUP(\"Payment Schedule\",MasterSheet!B2:AQ31,MATCH(B24,MasterSheet!A3:A31,0)+1,FALSE)","v":"No Mention"},{"$f":"HLOOKUP(\"Payment Condition\",MasterSheet!B2:AQ31,MATCH(B24,MasterSheet!A3:A31,0)+1,FALSE)","v":"No Mention"},{"$f":"HLOOKUP(\"Neighbourhood Criterion\",MasterSheet!B2:AQ31,MATCH(B24,MasterSheet!A3:A31,0)+1,FALSE)","v":"Same as Govt. Schools.\nRelaxation in case seats are not getting filled."},{"$f":"HLOOKUP(\"Procedure of Admission\",MasterSheet!B2:AQ31,MATCH(B24,MasterSheet!A3:A31,0)+1,FALSE)","v":"No Mention"},{"$f":"HLOOKUP(\"Special Entitlements for Disabled\",MasterSheet!B2:AQ31,MATCH(B24,MasterSheet!A3:A31,0)+1,FALSE)","v":"Special learning and support material"},{"$f":"HLOOKUP(\"Entitlements\",MasterSheet!B2:AQ31,MATCH(B24,MasterSheet!A3:A31,0)+1,FALSE)","v":"No Mention"},{"$f":"HLOOKUP(\"Misc\",MasterSheet!B2:AQ31,MATCH(B24,MasterSheet!A3:A31,0)+1,FALSE)","v":"-"}]
[22,"Punjab",{"$f":"HLOOKUP(\"EWS Criterion\",MasterSheet!B2:AQ31,MATCH(B25,MasterSheet!A3:A31,0)+1,FALSE)","v":"NA"},{"$f":"HLOOKUP(\"Disadvantaged Group Criterion\",MasterSheet!B2:AQ31,MATCH(B25,MasterSheet!A3:A31,0)+1,FALSE)","v":"NA"},{"$f":"HLOOKUP(\"Pre-School Education\",MasterSheet!B2:AQ31,MATCH(B25,MasterSheet!A3:A31,0)+1,FALSE)","v":"25% reservation applicable for pre-primary classes wherever available."},{"$f":"HLOOKUP(\"Frequency of Calculation of\nPer-child Cost\",MasterSheet!B2:AQ31,MATCH(B25,MasterSheet!A3:A31,0)+1,FALSE)","v":"Every year by Jun 30th"},{"$f":"HLOOKUP(\"Per-child Cost per year in Rupees\",MasterSheet!B2:AQ31,MATCH(B25,MasterSheet!A3:A31,0)+1,FALSE)","v":"NA"},{"$f":"HLOOKUP(\"Document Proof for EWS/Disadvantaged\",MasterSheet!B2:AQ31,MATCH(B25,MasterSheet!A3:A31,0)+1,FALSE)","v":"No Mention"},{"$f":"HLOOKUP(\"Payment Schedule\",MasterSheet!B2:AQ31,MATCH(B25,MasterSheet!A3:A31,0)+1,FALSE)","v":"To be notified"},{"$f":"HLOOKUP(\"Payment Condition\",MasterSheet!B2:AQ31,MATCH(B25,MasterSheet!A3:A31,0)+1,FALSE)","v":"1) Payment to be made only if there is no vacancy in neighbourhood govt. and govt. aided schools.\n2) Reimbursement would be least of the two proportions of salaries of teachers/staff paid by govt. and private unaided schools."},{"$f":"HLOOKUP(\"Neighbourhood Criterion\",MasterSheet!B2:AQ31,MATCH(B25,MasterSheet!A3:A31,0)+1,FALSE)","v":"Same as govt. schools. Relaxation of criterion in case of vacancies arising out of unavailability of children in neighbourhood."},{"$f":"HLOOKUP(\"Procedure of Admission\",MasterSheet!B2:AQ31,MATCH(B25,MasterSheet!A3:A31,0)+1,FALSE)","v":"No Mention"},{"$f":"HLOOKUP(\"Special Entitlements for Disabled\",MasterSheet!B2:AQ31,MATCH(B25,MasterSheet!A3:A31,0)+1,FALSE)","v":"No Mention"},{"$f":"HLOOKUP(\"Entitlements\",MasterSheet!B2:AQ31,MATCH(B25,MasterSheet!A3:A31,0)+1,FALSE)","v":"Free text books,\nWriting Materials,\nUniform"},{"$f":"HLOOKUP(\"Misc\",MasterSheet!B2:AQ31,MATCH(B25,MasterSheet!A3:A31,0)+1,FALSE)","v":"Where state school is not available in neighbourhood, children can enroll in private unaided schools and reimbursements shall be made to them."}]
[23,"Rajasthan",{"$f":"HLOOKUP(\"EWS Criterion\",MasterSheet!B2:AQ31,MATCH(B26,MasterSheet!A3:A31,0)+1,FALSE)","v":"NA"},{"$f":"HLOOKUP(\"Disadvantaged Group Criterion\",MasterSheet!B2:AQ31,MATCH(B26,MasterSheet!A3:A31,0)+1,FALSE)","v":"NA"},{"$f":"HLOOKUP(\"Pre-School Education\",MasterSheet!B2:AQ31,MATCH(B26,MasterSheet!A3:A31,0)+1,FALSE)","v":"No Mention"},{"$f":"HLOOKUP(\"Frequency of Calculation of\nPer-child Cost\",MasterSheet!B2:AQ31,MATCH(B26,MasterSheet!A3:A31,0)+1,FALSE)","v":"Every Year"},{"$f":"HLOOKUP(\"Per-child Cost per year in Rupees\",MasterSheet!B2:AQ31,MATCH(B26,MasterSheet!A3:A31,0)+1,FALSE)","v":"NA"},{"$f":"HLOOKUP(\"Document Proof for EWS/Disadvantaged\",MasterSheet!B2:AQ31,MATCH(B26,MasterSheet!A3:A31,0)+1,FALSE)","v":"No Mention"},{"$f":"HLOOKUP(\"Payment Schedule\",MasterSheet!B2:AQ31,MATCH(B26,MasterSheet!A3:A31,0)+1,FALSE)","v":"1st Instalment: October,\n2nd Instalment: June"},{"$f":"HLOOKUP(\"Payment Condition\",MasterSheet!B2:AQ31,MATCH(B26,MasterSheet!A3:A31,0)+1,FALSE)","v":"Verification of Enrolment"},{"$f":"HLOOKUP(\"Neighbourhood Criterion\",MasterSheet!B2:AQ31,MATCH(B26,MasterSheet!A3:A31,0)+1,FALSE)","v":"Geographical Limits of concerned Gram Panchayat/Nagar Palika/Nagar Parishad/Nagar Nigam.\nPreference to children residing in the same village/municipal ward where school is situated."},{"$f":"HLOOKUP(\"Procedure of Admission\",MasterSheet!B2:AQ31,MATCH(B26,MasterSheet!A3:A31,0)+1,FALSE)","v":"Draw of lots"},{"$f":"HLOOKUP(\"Special Entitlements for Disabled\",MasterSheet!B2:AQ31,MATCH(B26,MasterSheet!A3:A31,0)+1,FALSE)","v":"free special learning and support material"},{"$f":"HLOOKUP(\"Entitlements\",MasterSheet!B2:AQ31,MATCH(B26,MasterSheet!A3:A31,0)+1,FALSE)","v":"No Mention"},{"$f":"HLOOKUP(\"Misc\",MasterSheet!B2:AQ31,MATCH(B26,MasterSheet!A3:A31,0)+1,FALSE)","v":"-"}]
[24,"Sikkim",{"$f":"HLOOKUP(\"EWS Criterion\",MasterSheet!B2:AQ31,MATCH(B27,MasterSheet!A3:A31,0)+1,FALSE)","v":"NA"},{"$f":"HLOOKUP(\"Disadvantaged Group Criterion\",MasterSheet!B2:AQ31,MATCH(B27,MasterSheet!A3:A31,0)+1,FALSE)","v":"NA"},{"$f":"HLOOKUP(\"Pre-School Education\",MasterSheet!B2:AQ31,MATCH(B27,MasterSheet!A3:A31,0)+1,FALSE)","v":"No Mention"},{"$f":"HLOOKUP(\"Frequency of Calculation of\nPer-child Cost\",MasterSheet!B2:AQ31,MATCH(B27,MasterSheet!A3:A31,0)+1,FALSE)","v":"No Mention"},{"$f":"HLOOKUP(\"Per-child Cost per year in Rupees\",MasterSheet!B2:AQ31,MATCH(B27,MasterSheet!A3:A31,0)+1,FALSE)","v":"NA"},{"$f":"HLOOKUP(\"Document Proof for EWS/Disadvantaged\",MasterSheet!B2:AQ31,MATCH(B27,MasterSheet!A3:A31,0)+1,FALSE)","v":"No Mention"},{"$f":"HLOOKUP(\"Payment Schedule\",MasterSheet!B2:AQ31,MATCH(B27,MasterSheet!A3:A31,0)+1,FALSE)","v":"No Mention"},{"$f":"HLOOKUP(\"Payment Condition\",MasterSheet!B2:AQ31,MATCH(B27,MasterSheet!A3:A31,0)+1,FALSE)","v":"No Mention"},{"$f":"HLOOKUP(\"Neighbourhood Criterion\",MasterSheet!B2:AQ31,MATCH(B27,MasterSheet!A3:A31,0)+1,FALSE)","v":"Relaxation of criterion in case seats remain vacant."},{"$f":"HLOOKUP(\"Procedure of Admission\",MasterSheet!B2:AQ31,MATCH(B27,MasterSheet!A3:A31,0)+1,FALSE)","v":"No Mention"},{"$f":"HLOOKUP(\"Special Entitlements for Disabled\",MasterSheet!B2:AQ31,MATCH(B27,MasterSheet!A3:A31,0)+1,FALSE)","v":"Free special learning and support material"},{"$f":"HLOOKUP(\"Entitlements\",MasterSheet!B2:AQ31,MATCH(B27,MasterSheet!A3:A31,0)+1,FALSE)","v":"Free textbooks,\nWriting Materials,\nUniforms"},{"$f":"HLOOKUP(\"Misc\",MasterSheet!B2:AQ31,MATCH(B27,MasterSheet!A3:A31,0)+1,FALSE)","v":"-"}]
[25,"Tamil Nadu",{"$f":"HLOOKUP(\"EWS Criterion\",MasterSheet!B2:AQ31,MATCH(B28,MasterSheet!A3:A31,0)+1,FALSE)","v":"Annual Income of parents/guardian \n< Rs. 2,00,000"},{"$f":"HLOOKUP(\"Disadvantaged Group Criterion\",MasterSheet!B2:AQ31,MATCH(B28,MasterSheet!A3:A31,0)+1,FALSE)","v":"a) SC\nb) ST\nc) Socially and Educationally backward class/group\nd)  Orphan\ne) HIV affected\nf) Transgender\ng) Child of a scavenger"},{"$f":"HLOOKUP(\"Pre-School Education\",MasterSheet!B2:AQ31,MATCH(B28,MasterSheet!A3:A31,0)+1,FALSE)","v":"No Mention"},{"$f":"HLOOKUP(\"Frequency of Calculation of\nPer-child Cost\",MasterSheet!B2:AQ31,MATCH(B28,MasterSheet!A3:A31,0)+1,FALSE)","v":"No Mention"},{"$f":"HLOOKUP(\"Per-child Cost per year in Rupees\",MasterSheet!B2:AQ31,MATCH(B28,MasterSheet!A3:A31,0)+1,FALSE)","v":"Pre-primary: Rs. 5924\nClass I - VIII: Rs. 11,848"},{"$f":"HLOOKUP(\"Document Proof for EWS/Disadvantaged\",MasterSheet!B2:AQ31,MATCH(B28,MasterSheet!A3:A31,0)+1,FALSE)","v":"NA"},{"$f":"HLOOKUP(\"Payment Schedule\",MasterSheet!B2:AQ31,MATCH(B28,MasterSheet!A3:A31,0)+1,FALSE)","v":"1st Instalment: September\n2nd Instalment: March"},{"$f":"HLOOKUP(\"Payment Condition\",MasterSheet!B2:AQ31,MATCH(B28,MasterSheet!A3:A31,0)+1,FALSE)","v":"Verification of enrolment"},{"$f":"HLOOKUP(\"Neighbourhood Criterion\",MasterSheet!B2:AQ31,MATCH(B28,MasterSheet!A3:A31,0)+1,FALSE)","v":"Same as Govt. Schools.\nRelaxation in case seats are not getting filled."},{"$f":"HLOOKUP(\"Procedure of Admission\",MasterSheet!B2:AQ31,MATCH(B28,MasterSheet!A3:A31,0)+1,FALSE)","v":"No Mention"},{"$f":"HLOOKUP(\"Special Entitlements for Disabled\",MasterSheet!B2:AQ31,MATCH(B28,MasterSheet!A3:A31,0)+1,FALSE)","v":"Free special learning and support material."},{"$f":"HLOOKUP(\"Entitlements\",MasterSheet!B2:AQ31,MATCH(B28,MasterSheet!A3:A31,0)+1,FALSE)","v":"Free textbooks, writing materials and uniforms"},{"$f":"HLOOKUP(\"Misc\",MasterSheet!B2:AQ31,MATCH(B28,MasterSheet!A3:A31,0)+1,FALSE)","v":"-"}]
[26,"Tripura",{"$f":"HLOOKUP(\"EWS Criterion\",MasterSheet!B2:AQ31,MATCH(B29,MasterSheet!A3:A31,0)+1,FALSE)","v":"a) Parents belong to BPL category"},{"$f":"HLOOKUP(\"Disadvantaged Group Criterion\",MasterSheet!B2:AQ31,MATCH(B29,MasterSheet!A3:A31,0)+1,FALSE)","v":"a) SC\nb) ST\nc) OBC"},{"$f":"HLOOKUP(\"Pre-School Education\",MasterSheet!B2:AQ31,MATCH(B29,MasterSheet!A3:A31,0)+1,FALSE)","v":"No Mention"},{"$f":"HLOOKUP(\"Frequency of Calculation of\nPer-child Cost\",MasterSheet!B2:AQ31,MATCH(B29,MasterSheet!A3:A31,0)+1,FALSE)","v":"No Mention"},{"$f":"HLOOKUP(\"Per-child Cost per year in Rupees\",MasterSheet!B2:AQ31,MATCH(B29,MasterSheet!A3:A31,0)+1,FALSE)","v":"NA"},{"$f":"HLOOKUP(\"Document Proof for EWS/Disadvantaged\",MasterSheet!B2:AQ31,MATCH(B29,MasterSheet!A3:A31,0)+1,FALSE)","v":"No Mention"},{"$f":"HLOOKUP(\"Payment Schedule\",MasterSheet!B2:AQ31,MATCH(B29,MasterSheet!A3:A31,0)+1,FALSE)","v":"No Mention"},{"$f":"HLOOKUP(\"Payment Condition\",MasterSheet!B2:AQ31,MATCH(B29,MasterSheet!A3:A31,0)+1,FALSE)","v":"No Mention"},{"$f":"HLOOKUP(\"Neighbourhood Criterion\",MasterSheet!B2:AQ31,MATCH(B29,MasterSheet!A3:A31,0)+1,FALSE)","v":"Same as govt. schools. No mention of relaxation of criterion."},{"$f":"HLOOKUP(\"Procedure of Admission\",MasterSheet!B2:AQ31,MATCH(B29,MasterSheet!A3:A31,0)+1,FALSE)","v":"No Mention"},{"$f":"HLOOKUP(\"Special Entitlements for Disabled\",MasterSheet!B2:AQ31,MATCH(B29,MasterSheet!A3:A31,0)+1,FALSE)","v":"No Mention"},{"$f":"HLOOKUP(\"Entitlements\",MasterSheet!B2:AQ31,MATCH(B29,MasterSheet!A3:A31,0)+1,FALSE)","v":"No Mention"},{"$f":"HLOOKUP(\"Misc\",MasterSheet!B2:AQ31,MATCH(B29,MasterSheet!A3:A31,0)+1,FALSE)","v":"-"}]
[27,"Uttarakhand",{"$f":"HLOOKUP(\"EWS Criterion\",MasterSheet!B2:AQ31,MATCH(B30,MasterSheet!A3:A31,0)+1,FALSE)","v":"a) Annual Income \n< Rs. 55,000"},{"$f":"HLOOKUP(\"Disadvantaged Group Criterion\",MasterSheet!B2:AQ31,MATCH(B30,MasterSheet!A3:A31,0)+1,FALSE)","v":"a) SC\nb) ST\nc) Orphans\nd) Child depending on widow/divorcee mother whose annual income is < Rs. 80,000\ne) Disabled or whose parents are diabled whose annual income < Rs. 4.5 Lakh\nf) HIV affected/infected children"},{"$f":"HLOOKUP(\"Pre-School Education\",MasterSheet!B2:AQ31,MATCH(B30,MasterSheet!A3:A31,0)+1,FALSE)","v":"Applicable at the initial stage where pre-school education is available."},{"$f":"HLOOKUP(\"Frequency of Calculation of\nPer-child Cost\",MasterSheet!B2:AQ31,MATCH(B30,MasterSheet!A3:A31,0)+1,FALSE)","v":"Reservation at the initial stage of admission"},{"$f":"HLOOKUP(\"Per-child Cost per year in Rupees\",MasterSheet!B2:AQ31,MATCH(B30,MasterSheet!A3:A31,0)+1,FALSE)","v":"Rs. 16,596"},{"$f":"HLOOKUP(\"Document Proof for EWS/Disadvantaged\",MasterSheet!B2:AQ31,MATCH(B30,MasterSheet!A3:A31,0)+1,FALSE)","v":"No Mention"},{"$f":"HLOOKUP(\"Payment Schedule\",MasterSheet!B2:AQ31,MATCH(B30,MasterSheet!A3:A31,0)+1,FALSE)","v":"Time-frame of reimbursement to be decided by State level comm headed by PS/Secy Finance"},{"$f":"HLOOKUP(\"Payment Condition\",MasterSheet!B2:AQ31,MATCH(B30,MasterSheet!A3:A31,0)+1,FALSE)","v":"Private school should be the designated neighbourhood school."},{"$f":"HLOOKUP(\"Neighbourhood Criterion\",MasterSheet!B2:AQ31,MATCH(B30,MasterSheet!A3:A31,0)+1,FALSE)","v":"Relaxation of criterion in case seats remain vacant due to non-availability of children"},{"$f":"HLOOKUP(\"Procedure of Admission\",MasterSheet!B2:AQ31,MATCH(B30,MasterSheet!A3:A31,0)+1,FALSE)","v":"DEO shall notify a calendar for admission for 25% quota"},{"$f":"HLOOKUP(\"Special Entitlements for Disabled\",MasterSheet!B2:AQ31,MATCH(B30,MasterSheet!A3:A31,0)+1,FALSE)","v":"No Mention"},{"$f":"HLOOKUP(\"Entitlements\",MasterSheet!B2:AQ31,MATCH(B30,MasterSheet!A3:A31,0)+1,FALSE)","v":"Textbooks,\nMid-day Meals,\nUniforms for girls,\nUniforms for SC/ST and BPL boys"},{"$f":"HLOOKUP(\"Misc\",MasterSheet!B2:AQ31,MATCH(B30,MasterSheet!A3:A31,0)+1,FALSE)","v":"50% of children belonging to disadvantaged group shall be girls."}]
[28,"Uttar Pradesh",{"$f":"HLOOKUP(\"EWS Criterion\",MasterSheet!B2:AQ31,MATCH(B31,MasterSheet!A3:A31,0)+1,FALSE)","v":"Annual Income < Rs. 2,50,000"},{"$f":"HLOOKUP(\"Disadvantaged Group Criterion\",MasterSheet!B2:AQ31,MATCH(B31,MasterSheet!A3:A31,0)+1,FALSE)","v":"NA"},{"$f":"HLOOKUP(\"Pre-School Education\",MasterSheet!B2:AQ31,MATCH(B31,MasterSheet!A3:A31,0)+1,FALSE)","v":"No Mention"},{"$f":"HLOOKUP(\"Frequency of Calculation of\nPer-child Cost\",MasterSheet!B2:AQ31,MATCH(B31,MasterSheet!A3:A31,0)+1,FALSE)","v":"No Mention"},{"$f":"HLOOKUP(\"Per-child Cost per year in Rupees\",MasterSheet!B2:AQ31,MATCH(B31,MasterSheet!A3:A31,0)+1,FALSE)","v":"Rs. 3,716"},{"$f":"HLOOKUP(\"Document Proof for EWS/Disadvantaged\",MasterSheet!B2:AQ31,MATCH(B31,MasterSheet!A3:A31,0)+1,FALSE)","v":"NA"},{"$f":"HLOOKUP(\"Payment Schedule\",MasterSheet!B2:AQ31,MATCH(B31,MasterSheet!A3:A31,0)+1,FALSE)","v":"No Mention"},{"$f":"HLOOKUP(\"Payment Condition\",MasterSheet!B2:AQ31,MATCH(B31,MasterSheet!A3:A31,0)+1,FALSE)","v":"Verification by Zila Shiksha Adhikari.\nIf wrong information is submitted, penalty is twice the amount of reimbursement received."},{"$f":"HLOOKUP(\"Neighbourhood Criterion\",MasterSheet!B2:AQ31,MATCH(B31,MasterSheet!A3:A31,0)+1,FALSE)","v":"Relaxation fo neighbourhood criterion in case seats remain vacant due to non-availability of children"},{"$f":"HLOOKUP(\"Procedure of Admission\",MasterSheet!B2:AQ31,MATCH(B31,MasterSheet!A3:A31,0)+1,FALSE)","v":"No Mention"},{"$f":"HLOOKUP(\"Special Entitlements for Disabled\",MasterSheet!B2:AQ31,MATCH(B31,MasterSheet!A3:A31,0)+1,FALSE)","v":"free special learning and support material and equipments"},{"$f":"HLOOKUP(\"Entitlements\",MasterSheet!B2:AQ31,MATCH(B31,MasterSheet!A3:A31,0)+1,FALSE)","v":"Freetexbooks,\nUniforms"},{"$f":"HLOOKUP(\"Misc\",MasterSheet!B2:AQ31,MATCH(B31,MasterSheet!A3:A31,0)+1,FALSE)","v":"-"}]
[29,"West Bengal",{"$f":"HLOOKUP(\"EWS Criterion\",MasterSheet!B2:AQ31,MATCH(B32,MasterSheet!A3:A31,0)+1,FALSE)","v":"Either Parent belonging to BPL"},{"$f":"HLOOKUP(\"Disadvantaged Group Criterion\",MasterSheet!B2:AQ31,MATCH(B32,MasterSheet!A3:A31,0)+1,FALSE)","v":"1) Proportionate Representation in 25%:\na) SC: 22%\nb) ST: 6%\nc) OBC-A: 10%\nd) OBC-B: 7%\ne) Weaker Sections: 55%\n2) Preference to BPL among SC/ST/OBCs if applications exceed availability of seats.\n3) 50% reservation for girls."},{"$f":"HLOOKUP(\"Pre-School Education\",MasterSheet!B2:AQ31,MATCH(B32,MasterSheet!A3:A31,0)+1,FALSE)","v":"No Mention"},{"$f":"HLOOKUP(\"Frequency of Calculation of\nPer-child Cost\",MasterSheet!B2:AQ31,MATCH(B32,MasterSheet!A3:A31,0)+1,FALSE)","v":"No Mention"},{"$f":"HLOOKUP(\"Per-child Cost per year in Rupees\",MasterSheet!B2:AQ31,MATCH(B32,MasterSheet!A3:A31,0)+1,FALSE)","v":"NA"},{"$f":"HLOOKUP(\"Document Proof for EWS/Disadvantaged\",MasterSheet!B2:AQ31,MATCH(B32,MasterSheet!A3:A31,0)+1,FALSE)","v":"NA"},{"$f":"HLOOKUP(\"Payment Schedule\",MasterSheet!B2:AQ31,MATCH(B32,MasterSheet!A3:A31,0)+1,FALSE)","v":"Reimbursement Amount to be notified within three months from beginning of the academic year."},{"$f":"HLOOKUP(\"Payment Condition\",MasterSheet!B2:AQ31,MATCH(B32,MasterSheet!A3:A31,0)+1,FALSE)","v":"1) On the basis of recommendations of the District Inspector of Schools.\n2) As per quarterly requisition of category-wise enrolment data."},{"$f":"HLOOKUP(\"Neighbourhood Criterion\",MasterSheet!B2:AQ31,MATCH(B32,MasterSheet!A3:A31,0)+1,FALSE)","v":"No Mention"},{"$f":"HLOOKUP(\"Procedure of Admission\",MasterSheet!B2:AQ31,MATCH(B32,MasterSheet!A3:A31,0)+1,FALSE)","v":"Draw of lots in presence of local representatives.\nTwo phase lottery-\n1) General Lottery\n2) Second lottery for left over candidates in each category- SC/ST/OBC."},{"$f":"HLOOKUP(\"Special Entitlements for Disabled\",MasterSheet!B2:AQ31,MATCH(B32,MasterSheet!A3:A31,0)+1,FALSE)","v":"No Mention"},{"$f":"HLOOKUP(\"Entitlements\",MasterSheet!B2:AQ31,MATCH(B32,MasterSheet!A3:A31,0)+1,FALSE)","v":"Study Materials,\nUniform\n(To be reimbursed)"},{"$f":"HLOOKUP(\"Misc\",MasterSheet!B2:AQ31,MATCH(B32,MasterSheet!A3:A31,0)+1,FALSE)","v":"-"}]

{"sheet":"Credits","index":4,"n_rows":18,"n_cols":3,"rows_kept":18,"cut":false,"hidden":true,"merged":[[7,1,7,5]]}
[]
[]
[]
[null,null,"CENTRE FOR CIVIL SOCIETY"]
[null,null,"Social Change Through Public Policy"]
[]
[]
[null,"Designed, Coded and Compiled By"]
[null,"Name","Abhishek Bhattacharya"]
[null,"Designation","Associate, Advocacy"]
[null,"Team","School Choice Campaign"]
[null,"Organisation","Centre for Civil Society"]
[]
[null,"Email","abhishek@ccs.in"]
[null,"Twitter","@tathast_manush"]
[null,"Mobile","98106-59590"]
[null,"Phone","011 - 26537456 / Ext - 33"]
[null,"Office Address","A-69, Hauz Khas, New Delhi"]